Publisher Label,Publisher URI,"Supplier","Net Amount (£)","Organisational Unit","Merchant Category Code","Purpose","Payment Date"
"Wolverhampton City Council","http://opendatacommunities.org/id/metropolitan-district-council/wolverhampton","WWW.SEVERNTRENTSEARCHE","-335","HRA General","4900","Services - Professional Fees","13/11/2015"
"Wolverhampton City Council","http://opendatacommunities.org/id/metropolitan-district-council/wolverhampton","528120991 1 1","-320","Corporate Policy and Equalities","4722","Accommodation Costs","11/11/2015"
"Wolverhampton City Council","http://opendatacommunities.org/id/metropolitan-district-council/wolverhampton","WWW.MARTIAL-MATS.CO.UK","-248.95","Aldersley Leisure Village","5941","Equipment - Purchase","04/11/2015"
"Wolverhampton City Council","http://opendatacommunities.org/id/metropolitan-district-council/wolverhampton","WWW.SEVERNTRENTSEARCHE","-130","HRA General","4900","Services - Professional Fees","13/11/2015"
"Wolverhampton City Council","http://opendatacommunities.org/id/metropolitan-district-council/wolverhampton","ARGOS DIRECT","-129.99","Windsor - CIN SWU S17","5310","Equipment - Purchase","27/11/2015"
"Wolverhampton City Council","http://opendatacommunities.org/id/metropolitan-district-council/wolverhampton","OFFICE DEPOT","-111.37","Youth Service - General","5111","Equipment - Purchase","11/11/2015"
"Wolverhampton City Council","http://opendatacommunities.org/id/metropolitan-district-council/wolverhampton","PREMIER INN","-68","CIN - Bilston CC2 - Area 2","3811","Accommodation Costs","16/11/2015"
"Wolverhampton City Council","http://opendatacommunities.org/id/metropolitan-district-council/wolverhampton","PREMIER INN","-49","Bilston 2 - CIN SWU S17","3811","Accommodation Costs","11/11/2015"
"Wolverhampton City Council","http://opendatacommunities.org/id/metropolitan-district-council/wolverhampton","PREMIER INN","-49","Headstart","3811","Services - Supplies & Services to users","11/11/2015"
"Wolverhampton City Council","http://opendatacommunities.org/id/metropolitan-district-council/wolverhampton","Virgintrains.co.uk","-42.8","Planning","4112","Public Transport","06/11/2015"
"Wolverhampton City Council","http://opendatacommunities.org/id/metropolitan-district-council/wolverhampton","Amazon UK Marketplace","-36.99","Art Gallery","5999","Equipment - Purchase","20/11/2015"
"Wolverhampton City Council","http://opendatacommunities.org/id/metropolitan-district-council/wolverhampton","TFM FARM & COUNTRY SUP","-35","Northicote Farm","5399","Materials","05/11/2015"
"Wolverhampton City Council","http://opendatacommunities.org/id/metropolitan-district-council/wolverhampton","Virgintrains.co.uk","-32.45","Looked After Team 1","4112","Public Transport","04/11/2015"
"Wolverhampton City Council","http://opendatacommunities.org/id/metropolitan-district-council/wolverhampton","FINDEL EDUCATION","-26.92","SEN Sensory Inclusion","5969","Equipment - Purchase","16/11/2015"
"Wolverhampton City Council","http://opendatacommunities.org/id/metropolitan-district-council/wolverhampton","RIBA ENTERPRISES LTD","-20","Landscape","5942","Publications","20/11/2015"
"Wolverhampton City Council","http://opendatacommunities.org/id/metropolitan-district-council/wolverhampton","SAINSBURYS (2340)","-13.3","Discretionary Fund","5411","Provisions (Not for resale)","24/11/2015"
"Wolverhampton City Council","http://opendatacommunities.org/id/metropolitan-district-council/wolverhampton","WEST COAST TRAINS","-11","Economic Development","4112","Public Transport","17/11/2015"
"Wolverhampton City Council","http://opendatacommunities.org/id/metropolitan-district-council/wolverhampton","OFFICE DEPOT","-10","MAST 4 - Warstones","5111","Stationery","10/11/2015"
"Wolverhampton City Council","http://opendatacommunities.org/id/metropolitan-district-council/wolverhampton","GRO HM PASSPORT OFFICE","-9.25","Childrens with Disabilities Team","9399","Services - Fees and Charges","02/11/2015"
"Wolverhampton City Council","http://opendatacommunities.org/id/metropolitan-district-council/wolverhampton","ASDA HOME SHOPPING","-4.88","Upper Pendeford Farm Childrens Home","5411","Provisions (Not for resale)","10/11/2015"
"Wolverhampton City Council","http://opendatacommunities.org/id/metropolitan-district-council/wolverhampton","THE BOOK PEOPLE","-4.24","Global Budgets","5942","Books","24/11/2015"
"Wolverhampton City Council","http://opendatacommunities.org/id/metropolitan-district-council/wolverhampton","ASDA HOME SHOPPING","-2.19","Upper Pendeford Farm Childrens Home","5411","Provisions (Not for resale)","24/11/2015"
"Wolverhampton City Council","http://opendatacommunities.org/id/metropolitan-district-council/wolverhampton","ASDA HOME SHOPPING","-1","Swan Bank","5411","Provisions (Not for resale)","11/11/2015"
"Wolverhampton City Council","http://opendatacommunities.org/id/metropolitan-district-council/wolverhampton","TESCO STORE 3539","-1","Towers Outdoor Education Centre","5411","Provisions (Not for resale)","04/11/2015"
"Wolverhampton City Council","http://opendatacommunities.org/id/metropolitan-district-council/wolverhampton","ASDA HOME SHOPPING","-0.96","Ernest Bold Court","5411","Provisions (Not for resale)","04/11/2015"
"Wolverhampton City Council","http://opendatacommunities.org/id/metropolitan-district-council/wolverhampton","ASDA HOME SHOPPING","-0.32","Ernest Bold Court","5411","Provisions (Not for resale)","11/11/2015"
"Wolverhampton City Council","http://opendatacommunities.org/id/metropolitan-district-council/wolverhampton","ASDA HOME SHOPPING","-0.19","Ernest Bold Court","5411","Provisions (Not for resale)","09/11/2015"
"Wolverhampton City Council","http://opendatacommunities.org/id/metropolitan-district-council/wolverhampton","ASDA HOME SHOPPING","-0.09","Ernest Bold Court","5411","Provisions (Not for resale)","18/11/2015"
"Wolverhampton City Council","http://opendatacommunities.org/id/metropolitan-district-council/wolverhampton","ASDA HOME SHOPPING","-0.01","Swan Bank","5411","Provisions (Not for resale)","09/11/2015"
"Wolverhampton City Council","http://opendatacommunities.org/id/metropolitan-district-council/wolverhampton","ASDA HOME SHOPPING","0.2","Ernest Bold Court","5411","Provisions (Not for resale)","23/11/2015"
"Wolverhampton City Council","http://opendatacommunities.org/id/metropolitan-district-council/wolverhampton","ASDA HOME SHOPPING","0.2","Swan Bank","5411","Provisions (Not for resale)","02/11/2015"
"Wolverhampton City Council","http://opendatacommunities.org/id/metropolitan-district-council/wolverhampton","ASDA HOME SHOPPING","0.42","Upper Pendeford Farm Childrens Home","5411","Provisions (Not for resale)","17/11/2015"
"Wolverhampton City Council","http://opendatacommunities.org/id/metropolitan-district-council/wolverhampton","ASDA HOME SHOPPING","0.44","Ernest Bold Court","5411","Provisions (Not for resale)","16/11/2015"
"Wolverhampton City Council","http://opendatacommunities.org/id/metropolitan-district-council/wolverhampton","ASDA HOME SHOPPING","0.49","Ernest Bold Court","5411","Provisions (Not for resale)","25/11/2015"
"Wolverhampton City Council","http://opendatacommunities.org/id/metropolitan-district-council/wolverhampton","ASDA HOME SHOPPING","0.67","Ernest Bold Court","5411","Provisions (Not for resale)","30/11/2015"
"Wolverhampton City Council","http://opendatacommunities.org/id/metropolitan-district-council/wolverhampton","ASDA HOME SHOPPING","0.76","Ernest Bold Court","5411","Provisions (Not for resale)","02/11/2015"
"Wolverhampton City Council","http://opendatacommunities.org/id/metropolitan-district-council/wolverhampton","ITUNES.COM/BILL","0.79","Civic Halls Non Direct Management A/C","5735","Computing - Purchase of Software","18/11/2015"
"Wolverhampton City Council","http://opendatacommunities.org/id/metropolitan-district-council/wolverhampton","Amazon UK Marketplace","1.35","Parent / Partnership Service","5942","Stationery","20/11/2015"
"Wolverhampton City Council","http://opendatacommunities.org/id/metropolitan-district-council/wolverhampton","ROYAL MAIL  0845606040","1.5","Revenues","9402","Comms - Postage","12/11/2015"
"Wolverhampton City Council","http://opendatacommunities.org/id/metropolitan-district-council/wolverhampton","Amazon UK Marketplace","1.54","Legal Services","5942","Stationery","27/11/2015"
"Wolverhampton City Council","http://opendatacommunities.org/id/metropolitan-district-council/wolverhampton","METRO BARCELONA","1.54","Economic Development","4111","Public Transport","23/11/2015"
"Wolverhampton City Council","http://opendatacommunities.org/id/metropolitan-district-council/wolverhampton","OFFICE DEPOT","1.79","Business Manager - Place","5111","Stationery","30/11/2015"
"Wolverhampton City Council","http://opendatacommunities.org/id/metropolitan-district-council/wolverhampton","TESCO STORES 5403","1.89","Swan Bank","5411","Provisions (Not for resale)","20/11/2015"
"Wolverhampton City Council","http://opendatacommunities.org/id/metropolitan-district-council/wolverhampton","WIX.COM","1.9","Technical Support","5968","Subscriptions","11/11/2015"
"Wolverhampton City Council","http://opendatacommunities.org/id/metropolitan-district-council/wolverhampton","Amazon UK Marketplace","2.02","Parent / Partnership Service","5942","Stationery","19/11/2015"
"Wolverhampton City Council","http://opendatacommunities.org/id/metropolitan-district-council/wolverhampton","OFFICE DEPOT","2.13","Avenues - CIN SWU S17","5111","Stationery","18/11/2015"
"Wolverhampton City Council","http://opendatacommunities.org/id/metropolitan-district-council/wolverhampton","OFFICE DEPOT","2.48","Ground Maintenance West","5111","Stationery","11/11/2015"
"Wolverhampton City Council","http://opendatacommunities.org/id/metropolitan-district-council/wolverhampton","TESCO STORES 3414","2.48","Mayoral Expenses","5411","Hospitality","25/11/2015"
"Wolverhampton City Council","http://opendatacommunities.org/id/metropolitan-district-council/wolverhampton","TESCO STORES 3414","2.48","Mayoral Expenses","5411","Hospitality","12/11/2015"
"Wolverhampton City Council","http://opendatacommunities.org/id/metropolitan-district-council/wolverhampton","OFFICE DEPOT","2.5","MAST 4 - Warstones","5111","Stationery","10/11/2015"
"Wolverhampton City Council","http://opendatacommunities.org/id/metropolitan-district-council/wolverhampton","TESCO DELIVERY SAVER2","2.5","Towers Outdoor Education Centre","5968","Subscriptions","20/11/2015"
"Wolverhampton City Council","http://opendatacommunities.org/id/metropolitan-district-council/wolverhampton","OFFICE DEPOT","2.8","Assessment Team (West)","5111","Stationery","16/11/2015"
"Wolverhampton City Council","http://opendatacommunities.org/id/metropolitan-district-council/wolverhampton","POST OFFICE COUNTER","2.8","Landscape","9402","Comms - Postage","10/11/2015"
"Wolverhampton City Council","http://opendatacommunities.org/id/metropolitan-district-council/wolverhampton","Amazon UK Marketplace","2.81","Global Budgets","5942","Books","23/11/2015"
"Wolverhampton City Council","http://opendatacommunities.org/id/metropolitan-district-council/wolverhampton","Amazon UK Marketplace","2.81","Global Budgets","5942","Books","20/11/2015"
"Wolverhampton City Council","http://opendatacommunities.org/id/metropolitan-district-council/wolverhampton","Amazon UK Marketplace","2.81","Global Budgets","5942","Books","17/11/2015"
"Wolverhampton City Council","http://opendatacommunities.org/id/metropolitan-district-council/wolverhampton","Amazon UK Marketplace","2.81","Global Budgets","5942","Books","17/11/2015"
"Wolverhampton City Council","http://opendatacommunities.org/id/metropolitan-district-council/wolverhampton","SAINSBURYS (2340)","3","Benefits","5411","Provisions (Not for resale)","26/11/2015"
"Wolverhampton City Council","http://opendatacommunities.org/id/metropolitan-district-council/wolverhampton","TESCO STORES 3414","3.25","Mayoral Expenses","5411","Hospitality","27/11/2015"
"Wolverhampton City Council","http://opendatacommunities.org/id/metropolitan-district-council/wolverhampton","WAITROSE 696","3.32","MAST - Central Team","5411","Provisions (Not for resale)","26/11/2015"
"Wolverhampton City Council","http://opendatacommunities.org/id/metropolitan-district-council/wolverhampton","WEST COAST TRAINS","3.5","Road Safety","4112","Public Transport","19/11/2015"
"Wolverhampton City Council","http://opendatacommunities.org/id/metropolitan-district-council/wolverhampton","WM MORRISONS","3.67","Upper Pendeford Farm Childrens Home","5411","Provisions (Not for resale)","16/11/2015"
"Wolverhampton City Council","http://opendatacommunities.org/id/metropolitan-district-council/wolverhampton","CO-OP GROUP 070361","3.69","Nelson Mandela House","5411","Provisions (Not for resale)","26/11/2015"
"Wolverhampton City Council","http://opendatacommunities.org/id/metropolitan-district-council/wolverhampton","MAPLIN CANNOCK WS11","3.79","SEN Early Years Team","5732","Equipment - Purchase","18/11/2015"
"Wolverhampton City Council","http://opendatacommunities.org/id/metropolitan-district-council/wolverhampton","Amazon UK Marketplace","3.85","Global Budgets","5942","Books","16/11/2015"
"Wolverhampton City Council","http://opendatacommunities.org/id/metropolitan-district-council/wolverhampton","ASDA SUPERSTORE","3.87","Civic Centre Catering","5411","Provisions (Not for resale)","23/11/2015"
"Wolverhampton City Council","http://opendatacommunities.org/id/metropolitan-district-council/wolverhampton","OFFICE DEPOT","3.88","Property Services - Business Support","5111","Stationery","17/11/2015"
"Wolverhampton City Council","http://opendatacommunities.org/id/metropolitan-district-council/wolverhampton","Amazon UK Marketplace","3.9","Parks - South West Area Management","5942","Equipment - Purchase","06/11/2015"
"Wolverhampton City Council","http://opendatacommunities.org/id/metropolitan-district-council/wolverhampton","Amazon Svcs Europe,SAR","3.98","LAC Education Team (LACE)","5942","Equipment - Purchase","16/11/2015"
"Wolverhampton City Council","http://opendatacommunities.org/id/metropolitan-district-council/wolverhampton","Amazon UK Marketplace","4","Legal Services","5942","Stationery","30/11/2015"
"Wolverhampton City Council","http://opendatacommunities.org/id/metropolitan-district-council/wolverhampton","TESCO STORES-2214","4","SEN Early Years Team","5411","Equipment - Purchase","05/11/2015"
"Wolverhampton City Council","http://opendatacommunities.org/id/metropolitan-district-council/wolverhampton","Amazon UK Marketplace","4.04","Parent / Partnership Service","5942","Stationery","19/11/2015"
"Wolverhampton City Council","http://opendatacommunities.org/id/metropolitan-district-council/wolverhampton","Amazon Svcs Europe,SAR","4.08","Play General","5942","Books","30/11/2015"
"Wolverhampton City Council","http://opendatacommunities.org/id/metropolitan-district-council/wolverhampton","SAINSBURYS 0823","4.25","Revenues","5411","Provisions (Not for resale)","16/11/2015"
"Wolverhampton City Council","http://opendatacommunities.org/id/metropolitan-district-council/wolverhampton","OFFICE DEPOT","4.29","Archives","5111","Stationery","27/11/2015"
"Wolverhampton City Council","http://opendatacommunities.org/id/metropolitan-district-council/wolverhampton","ALDI","4.3","SEN Early Years Team","5411","Equipment - Purchase","05/11/2015"
"Wolverhampton City Council","http://opendatacommunities.org/id/metropolitan-district-council/wolverhampton","JURYS DOYLE HOTEL","4.4","Headstart","7011","Services - Supplies & Services to users","06/11/2015"
"Wolverhampton City Council","http://opendatacommunities.org/id/metropolitan-district-council/wolverhampton","POST OFFICE COUNTER","4.4","MAST 5 - Valley Park","9402","Comms - Postage","17/11/2015"
"Wolverhampton City Council","http://opendatacommunities.org/id/metropolitan-district-council/wolverhampton","TESCO STORES 5403","4.5","Swan Bank","5411","Provisions (Not for resale)","02/11/2015"
"Wolverhampton City Council","http://opendatacommunities.org/id/metropolitan-district-council/wolverhampton","SAINSBURYS SACAT 2040","4.65","Children's Village Nursery","5411","School Meals","19/11/2015"
"Wolverhampton City Council","http://opendatacommunities.org/id/metropolitan-district-council/wolverhampton","Amazon UK Marketplace","4.79","Creative Studies Delivery Area","5942","Equipment - R & M","05/11/2015"
"Wolverhampton City Council","http://opendatacommunities.org/id/metropolitan-district-council/wolverhampton","ARGOS LTD","4.79","Bilston 2 - CIN SWU S17","5310","Equipment - Purchase","16/11/2015"
"Wolverhampton City Council","http://opendatacommunities.org/id/metropolitan-district-council/wolverhampton","B & Q","4.93","Cleaning of Buildings - General","5211","R&M - Departmental planned (external)","30/11/2015"
"Wolverhampton City Council","http://opendatacommunities.org/id/metropolitan-district-council/wolverhampton","WIFI PREMIER INN","5","Headstart","5734","Computing - Purchase of Software","09/11/2015"
"Wolverhampton City Council","http://opendatacommunities.org/id/metropolitan-district-council/wolverhampton","TESCO STORES 5403","5.25","Swan Bank","5411","Provisions (Not for resale)","11/11/2015"
"Wolverhampton City Council","http://opendatacommunities.org/id/metropolitan-district-council/wolverhampton","FTPE WEBTIS 1","5.4","LAC Transitions Team","4112","Public Transport","09/11/2015"
"Wolverhampton City Council","http://opendatacommunities.org/id/metropolitan-district-council/wolverhampton","CO-OP GROUP 070722","5.45","Headstart","5411","Provisions (Not for resale)","04/11/2015"
"Wolverhampton City Council","http://opendatacommunities.org/id/metropolitan-district-council/wolverhampton","THE POST OFFICE","5.45","Technician","9402","Comms - Postage","19/11/2015"
"Wolverhampton City Council","http://opendatacommunities.org/id/metropolitan-district-council/wolverhampton","Amazon UK Marketplace","5.46","Global Budgets","5942","Books","16/11/2015"
"Wolverhampton City Council","http://opendatacommunities.org/id/metropolitan-district-council/wolverhampton","CO-OP GROUP 070722","5.48","Headstart","5411","Provisions (Not for resale)","05/11/2015"
"Wolverhampton City Council","http://opendatacommunities.org/id/metropolitan-district-council/wolverhampton","TESCO STORES 6727","5.69","Blakenhall Commty & Healthy Living Ctr","5411","Equipment - Purchase","02/11/2015"
"Wolverhampton City Council","http://opendatacommunities.org/id/metropolitan-district-council/wolverhampton","OFFICE DEPOT","5.79","Financial Assessments","5111","Stationery","02/11/2015"
"Wolverhampton City Council","http://opendatacommunities.org/id/metropolitan-district-council/wolverhampton","WM MORRISON 024","5.97","Civic Centre Catering","5411","Provisions (Not for resale)","24/11/2015"
"Wolverhampton City Council","http://opendatacommunities.org/id/metropolitan-district-council/wolverhampton","Amazon UK Marketplace","5.98","School Improvement","5942","Books","09/11/2015"
"Wolverhampton City Council","http://opendatacommunities.org/id/metropolitan-district-council/wolverhampton","ASDA SUPERSTORE","6","Civic Centre Catering","5411","Provisions (Not for resale)","06/11/2015"
"Wolverhampton City Council","http://opendatacommunities.org/id/metropolitan-district-council/wolverhampton","PONY EXPRESS UK LTD","6","Independent Living Service","4215","Comms - Postage","06/11/2015"
"Wolverhampton City Council","http://opendatacommunities.org/id/metropolitan-district-council/wolverhampton","POUNDLAND LTD 1729","6","Headstart","5310","Equipment - Purchase","02/11/2015"
"Wolverhampton City Council","http://opendatacommunities.org/id/metropolitan-district-council/wolverhampton","SAINSBURYS (2340)","6","Swan Bank","5411","Provisions (Not for resale)","27/11/2015"
"Wolverhampton City Council","http://opendatacommunities.org/id/metropolitan-district-council/wolverhampton","TESCO STORES 6727","6.1","Restorative Justice","5411","Hospitality","17/11/2015"
"Wolverhampton City Council","http://opendatacommunities.org/id/metropolitan-district-council/wolverhampton","WM MORRISON 024","6.19","MAST 2 - Bilston","5411","Provisions (Not for resale)","06/11/2015"
"Wolverhampton City Council","http://opendatacommunities.org/id/metropolitan-district-council/wolverhampton","WILKO RETAIL LIMIT","6.25","Education Library Service","5722","Stationery","02/11/2015"
"Wolverhampton City Council","http://opendatacommunities.org/id/metropolitan-district-council/wolverhampton","B & Q","6.26","Caretakers Community Centre","5211","R&M - Departmental planned (external)","02/11/2015"
"Wolverhampton City Council","http://opendatacommunities.org/id/metropolitan-district-council/wolverhampton","ASDA SUPERSTORE","6.3","Community Enablement","5411","Provisions (Not for resale)","09/11/2015"
"Wolverhampton City Council","http://opendatacommunities.org/id/metropolitan-district-council/wolverhampton","PARK MOBILE","6.3","Mayoral Expenses","7523","Parking Fees","19/11/2015"
"Wolverhampton City Council","http://opendatacommunities.org/id/metropolitan-district-council/wolverhampton","WAITROSE 696","6.45","MAST - Central Team","5411","Provisions (Not for resale)","26/11/2015"
"Wolverhampton City Council","http://opendatacommunities.org/id/metropolitan-district-council/wolverhampton","G & M HALE (SUNDRIES)","6.55","Discretionary Fund","5992","Materials","25/11/2015"
"Wolverhampton City Council","http://opendatacommunities.org/id/metropolitan-district-council/wolverhampton","OFFICE DEPOT","6.6","Payroll/HR","5111","Stationery","03/11/2015"
"Wolverhampton City Council","http://opendatacommunities.org/id/metropolitan-district-council/wolverhampton","B&M RETAIL LTD","6.65","LAC Transitions Team","5310","Client Allowances","19/11/2015"
"Wolverhampton City Council","http://opendatacommunities.org/id/metropolitan-district-council/wolverhampton","RYMAN","6.65","Mayoral Expenses","5943","Stationery","11/11/2015"
"Wolverhampton City Council","http://opendatacommunities.org/id/metropolitan-district-council/wolverhampton","OFFICE DEPOT","6.66","LAC Admin Team","5111","Stationery","25/11/2015"
"Wolverhampton City Council","http://opendatacommunities.org/id/metropolitan-district-council/wolverhampton","TESCO STORES 6727","6.75","Restorative Justice","5411","Hospitality","27/11/2015"
"Wolverhampton City Council","http://opendatacommunities.org/id/metropolitan-district-council/wolverhampton","OFFICE DEPOT","6.82","LAC Transitions Team","5111","Stationery","13/11/2015"
"Wolverhampton City Council","http://opendatacommunities.org/id/metropolitan-district-council/wolverhampton","TESCO STORES 3414","6.89","Parking Enforcement","5411","Provisions (Not for resale)","02/11/2015"
"Wolverhampton City Council","http://opendatacommunities.org/id/metropolitan-district-council/wolverhampton","PONY EXPRESS UK LTD","7.2","Parking Enforcement","4215","Comms - Postage","10/11/2015"
"Wolverhampton City Council","http://opendatacommunities.org/id/metropolitan-district-council/wolverhampton","WAITROSE 696","7.2","Restorative Justice","5411","Hospitality","10/11/2015"
"Wolverhampton City Council","http://opendatacommunities.org/id/metropolitan-district-council/wolverhampton","POST OFFICE COUNTER","7.25","Technical Support","9402","Comms - Postage","10/11/2015"
"Wolverhampton City Council","http://opendatacommunities.org/id/metropolitan-district-council/wolverhampton","OFFICE DEPOT","7.29","Business Manager - Place","5111","Stationery","19/11/2015"
"Wolverhampton City Council","http://opendatacommunities.org/id/metropolitan-district-council/wolverhampton","OFFICE DEPOT","7.29","Assessment Team (West)","5111","Stationery","12/11/2015"
"Wolverhampton City Council","http://opendatacommunities.org/id/metropolitan-district-council/wolverhampton","POST OFFICE COUNTER","7.32","Legal Services","9402","Comms - Postage","20/11/2015"
"Wolverhampton City Council","http://opendatacommunities.org/id/metropolitan-district-council/wolverhampton","Amazon UK Marketplace","7.35","School Improvement","5942","Books","06/11/2015"
"Wolverhampton City Council","http://opendatacommunities.org/id/metropolitan-district-council/wolverhampton","FTPE WEBTIS 1","7.4","LAC Transitions Team","4112","Public Transport","09/11/2015"
"Wolverhampton City Council","http://opendatacommunities.org/id/metropolitan-district-council/wolverhampton","Cross Country","7.5","Commissioning Disabilities","4112","Public Transport","09/11/2015"
"Wolverhampton City Council","http://opendatacommunities.org/id/metropolitan-district-council/wolverhampton","Virgintrains.co.uk","7.5","Parent / Partnership Service","4112","Public Transport","17/11/2015"
"Wolverhampton City Council","http://opendatacommunities.org/id/metropolitan-district-council/wolverhampton","WM MORRISONS","7.5","Head of Service - LAC","5411","Provisions (Not for resale)","30/11/2015"
"Wolverhampton City Council","http://opendatacommunities.org/id/metropolitan-district-council/wolverhampton","WAITROSE 696","7.56","Graiseley - CIN SWU S17","5411","Provisions (Not for resale)","23/11/2015"
"Wolverhampton City Council","http://opendatacommunities.org/id/metropolitan-district-council/wolverhampton","WEST COAST TRAINS","7.6","Economic Development","4112","Public Transport","03/11/2015"
"Wolverhampton City Council","http://opendatacommunities.org/id/metropolitan-district-council/wolverhampton","WM MORRISON 024","7.75","Fostering Team & Allowances","5411","Provisions (Not for resale)","18/11/2015"
"Wolverhampton City Council","http://opendatacommunities.org/id/metropolitan-district-council/wolverhampton","JB'S","7.87","Headstart","5812","Educ Trips, Holidays, Outings, Activity","09/11/2015"
"Wolverhampton City Council","http://opendatacommunities.org/id/metropolitan-district-council/wolverhampton","Virgintrains.co.uk","7.9","Children & Young People Support Costs","4112","Public Transport","19/11/2015"
"Wolverhampton City Council","http://opendatacommunities.org/id/metropolitan-district-council/wolverhampton","Virgintrains.co.uk","7.9","Children & Young People Support Costs","4112","Public Transport","11/11/2015"
"Wolverhampton City Council","http://opendatacommunities.org/id/metropolitan-district-council/wolverhampton","Amazon UK Marketplace","7.96","Parks - South West Area Management","5942","Equipment - Purchase","06/11/2015"
"Wolverhampton City Council","http://opendatacommunities.org/id/metropolitan-district-council/wolverhampton","OFFICE DEPOT","7.98","Children's Village Children Centre","5111","Cleaning Supplies and Materials","26/11/2015"
"Wolverhampton City Council","http://opendatacommunities.org/id/metropolitan-district-council/wolverhampton","Amazon UK Marketplace","7.99","Legal Services","5942","Stationery","27/11/2015"
"Wolverhampton City Council","http://opendatacommunities.org/id/metropolitan-district-council/wolverhampton","Amazon UK Marketplace","7.99","Members Expenses","5942","Computing - Consumables","10/11/2015"
"Wolverhampton City Council","http://opendatacommunities.org/id/metropolitan-district-council/wolverhampton","Amazon EU","8.08","School Improvement","5969","Equipment - Purchase","09/11/2015"
"Wolverhampton City Council","http://opendatacommunities.org/id/metropolitan-district-council/wolverhampton","OFFICE DEPOT","8.25","Business Manager - Place","5111","Stationery","27/11/2015"
"Wolverhampton City Council","http://opendatacommunities.org/id/metropolitan-district-council/wolverhampton","CURRYS S/S","8.32","Youth Offending Team","5732","Equipment - Purchase","11/11/2015"
"Wolverhampton City Council","http://opendatacommunities.org/id/metropolitan-district-council/wolverhampton","SAINSBURYS OPT 1340","8.32","Maintenance of Exhibits","5542","Petrol","20/11/2015"
"Wolverhampton City Council","http://opendatacommunities.org/id/metropolitan-district-council/wolverhampton","WATERSTONES","8.33","Mayoral Expenses","5942","Hospitality","27/11/2015"
"Wolverhampton City Council","http://opendatacommunities.org/id/metropolitan-district-council/wolverhampton","123 REG R/T","8.38","Customer Services","5968","Subscriptions","27/11/2015"
"Wolverhampton City Council","http://opendatacommunities.org/id/metropolitan-district-council/wolverhampton","TRAINLINE","8.41","Childrens Centres & Early Years","4112","Public Transport","03/11/2015"
"Wolverhampton City Council","http://opendatacommunities.org/id/metropolitan-district-council/wolverhampton","FIRA BCN GASTROFIRA CO","8.74","Economic Development","5812","Educ Trips, Holidays, Outings, Activity","18/11/2015"
"Wolverhampton City Council","http://opendatacommunities.org/id/metropolitan-district-council/wolverhampton","SAINSBURYS SACAT 2040","8.75","Ernest Bold Court","5411","Provisions (Not for resale)","19/11/2015"
"Wolverhampton City Council","http://opendatacommunities.org/id/metropolitan-district-council/wolverhampton","ASDA 4387","8.95","Children's Village Children Centre","5411","Equipment - Purchase","11/11/2015"
"Wolverhampton City Council","http://opendatacommunities.org/id/metropolitan-district-council/wolverhampton","UNTOUCHABLES","9.17","Cemeteries","5231","Materials","19/11/2015"
"Wolverhampton City Council","http://opendatacommunities.org/id/metropolitan-district-council/wolverhampton","GRO HM PASSPORT OFFICE","9.25","LAC Transitions Team","9399","Services - Fees and Charges","26/11/2015"
"Wolverhampton City Council","http://opendatacommunities.org/id/metropolitan-district-council/wolverhampton","FIRA BCN GASTROFIRA CO","9.35","Economic Development","5812","Educ Trips, Holidays, Outings, Activity","19/11/2015"
"Wolverhampton City Council","http://opendatacommunities.org/id/metropolitan-district-council/wolverhampton","HOMEBASE LTD 103","9.49","Bradley Resource Centre","5211","Equipment - Purchase","23/11/2015"
"Wolverhampton City Council","http://opendatacommunities.org/id/metropolitan-district-council/wolverhampton","THE POST OFFICE","9.75","Looked After Team 1","9402","Comms - Postage","11/11/2015"
"Wolverhampton City Council","http://opendatacommunities.org/id/metropolitan-district-council/wolverhampton","Amazon UK Marketplace","9.79","Global Budgets","5942","Books","17/11/2015"
"Wolverhampton City Council","http://opendatacommunities.org/id/metropolitan-district-council/wolverhampton","TRAINLINE","9.84","AES Staff Development","4112","Public Transport","27/11/2015"
"Wolverhampton City Council","http://opendatacommunities.org/id/metropolitan-district-council/wolverhampton","ARGOS LTD","9.89","College of Further Education","5310","Equipment - Purchase","26/11/2015"
"Wolverhampton City Council","http://opendatacommunities.org/id/metropolitan-district-council/wolverhampton","WATERSTONES","9.99","Archives","5942","Books","20/11/2015"
"Wolverhampton City Council","http://opendatacommunities.org/id/metropolitan-district-council/wolverhampton","ASDA SUPERSTORE","10","Youth Offending Team","5411","Provisions (Not for resale)","06/11/2015"
"Wolverhampton City Council","http://opendatacommunities.org/id/metropolitan-district-council/wolverhampton","CENTRO","10","Alfred Squire - CIN SWU S17","9399","Client Transport","24/11/2015"
"Wolverhampton City Council","http://opendatacommunities.org/id/metropolitan-district-council/wolverhampton","CENTURY ELECTRICAL WHO","10","Culwell Street Depot","5065","R&M - Departmental planned (external)","04/11/2015"
"Wolverhampton City Council","http://opendatacommunities.org/id/metropolitan-district-council/wolverhampton","CO-OP GROUP 070361","10","MAST 4 - Warstones","5411","Provisions (Not for resale)","20/11/2015"
"Wolverhampton City Council","http://opendatacommunities.org/id/metropolitan-district-council/wolverhampton","E01350800000000","10","Swan Bank","6011","Services - Bank Charges","19/11/2015"
"Wolverhampton City Council","http://opendatacommunities.org/id/metropolitan-district-council/wolverhampton","HERON FOODS LTD","10","Ernest Bold Court","5499","Catering","09/11/2015"
"Wolverhampton City Council","http://opendatacommunities.org/id/metropolitan-district-council/wolverhampton","NATWEST BANK","10","MAST 2 - Bilston","6011","Financial Assistance In Exceptional Circ","24/11/2015"
"Wolverhampton City Council","http://opendatacommunities.org/id/metropolitan-district-council/wolverhampton","PRIMARK","10","Connexions Contract","5651","Provisions (Not for resale)","13/11/2015"
"Wolverhampton City Council","http://opendatacommunities.org/id/metropolitan-district-council/wolverhampton","ROYAL BK OF SCOTLAND","10","Swan Bank","6011","Services - Bank Charges","09/11/2015"
"Wolverhampton City Council","http://opendatacommunities.org/id/metropolitan-district-council/wolverhampton","STAFFORDSHIRE COUNTY C","10","Electoral Registration","9399","Services - Fees and Charges","19/11/2015"
"Wolverhampton City Council","http://opendatacommunities.org/id/metropolitan-district-council/wolverhampton","TESCO STORE 3414","10","Parking Enforcement","5411","Provisions (Not for resale)","09/11/2015"
"Wolverhampton City Council","http://opendatacommunities.org/id/metropolitan-district-council/wolverhampton","WAITROSE 696","10","School Improvement","5411","Provisions (Not for resale)","09/11/2015"
"Wolverhampton City Council","http://opendatacommunities.org/id/metropolitan-district-council/wolverhampton","WEST COAST TRAINS","10","Art Gallery","4112","Public Transport","19/11/2015"
"Wolverhampton City Council","http://opendatacommunities.org/id/metropolitan-district-council/wolverhampton","METRO BARCELONA","10.11","Economic Development","4111","Public Transport","19/11/2015"
"Wolverhampton City Council","http://opendatacommunities.org/id/metropolitan-district-council/wolverhampton","TRAINLINE","10.15","Looked After Team 1","4112","Public Transport","30/11/2015"
"Wolverhampton City Council","http://opendatacommunities.org/id/metropolitan-district-council/wolverhampton","TRAINLINE","10.15","Looked After Team 1","4112","Public Transport","19/11/2015"
"Wolverhampton City Council","http://opendatacommunities.org/id/metropolitan-district-council/wolverhampton","FIREPROTECT","10.32","College of Further Education","5251","Equipment - Purchase","16/11/2015"
"Wolverhampton City Council","http://opendatacommunities.org/id/metropolitan-district-council/wolverhampton","HOME BARGAINS","10.36","MAST 8 - Wednesfield","5251","Equipment - Purchase","26/11/2015"
"Wolverhampton City Council","http://opendatacommunities.org/id/metropolitan-district-council/wolverhampton","ASDA SUPERSTORE","10.44","Civic Centre Catering","5411","Provisions (Not for resale)","20/11/2015"
"Wolverhampton City Council","http://opendatacommunities.org/id/metropolitan-district-council/wolverhampton","G & M HALE (SUNDRIES)","10.55","Creative Studies Delivery Area","5992","Materials for resale","25/11/2015"
"Wolverhampton City Council","http://opendatacommunities.org/id/metropolitan-district-council/wolverhampton","OFFICE DEPOT","10.64","Welfare Rights","5111","Stationery","20/11/2015"
"Wolverhampton City Council","http://opendatacommunities.org/id/metropolitan-district-council/wolverhampton","WM MORRISON 024","10.65","Ernest Bold Court","5411","Provisions (Not for resale)","23/11/2015"
"Wolverhampton City Council","http://opendatacommunities.org/id/metropolitan-district-council/wolverhampton","OFFICE DEPOT","10.68","Fleet Management","5111","Equipment - Purchase","03/11/2015"
"Wolverhampton City Council","http://opendatacommunities.org/id/metropolitan-district-council/wolverhampton","TESCO STORES 3414","10.75","Restorative Justice","5411","Hospitality","25/11/2015"
"Wolverhampton City Council","http://opendatacommunities.org/id/metropolitan-district-council/wolverhampton","B & Q","10.8","Bert Williams Leisure Centre","5211","Equipment - Purchase","27/11/2015"
"Wolverhampton City Council","http://opendatacommunities.org/id/metropolitan-district-council/wolverhampton","WEST COAST TRAINS","10.8","Children & Young People Support Costs","4112","Public Transport","12/11/2015"
"Wolverhampton City Council","http://opendatacommunities.org/id/metropolitan-district-council/wolverhampton","WWW.MAPLIN.CO.UK","10.82","Bert Williams Leisure Centre","5732","Equipment - Purchase","16/11/2015"
"Wolverhampton City Council","http://opendatacommunities.org/id/metropolitan-district-council/wolverhampton","UNTOUCHABLES","10.83","Meals on Wheels","5231","Equipment - R & M","02/11/2015"
"Wolverhampton City Council","http://opendatacommunities.org/id/metropolitan-district-council/wolverhampton","BOOTS","11","Whitmore Reans - CIN SWU S17","5912","Toilet Requisites","03/11/2015"
"Wolverhampton City Council","http://opendatacommunities.org/id/metropolitan-district-council/wolverhampton","EXPRESS GROUP LIMITED","11","MAST - Central Team","5065","Equipment - R & M","13/11/2015"
"Wolverhampton City Council","http://opendatacommunities.org/id/metropolitan-district-council/wolverhampton","WEST COAST TRAINS","11","Economic Development","4112","Public Transport","17/11/2015"
"Wolverhampton City Council","http://opendatacommunities.org/id/metropolitan-district-council/wolverhampton","WEST COAST TRAINS","11","Economic Development","4112","Public Transport","17/11/2015"
"Wolverhampton City Council","http://opendatacommunities.org/id/metropolitan-district-council/wolverhampton","SAINSBURYS (2340)","11.2","Civic Centre Catering","5411","Provisions (Not for resale)","05/11/2015"
"Wolverhampton City Council","http://opendatacommunities.org/id/metropolitan-district-council/wolverhampton","ASDA SUPERSTORE","11.26","Civic Centre Catering","5411","Provisions (Not for resale)","24/11/2015"
"Wolverhampton City Council","http://opendatacommunities.org/id/metropolitan-district-council/wolverhampton","Amazon UK Marketplace","11.4","Foundation Studies","5942","Equipment - Purchase","27/11/2015"
"Wolverhampton City Council","http://opendatacommunities.org/id/metropolitan-district-council/wolverhampton","OFFICE DEPOT","11.48","Welfare Rights","5111","Stationery","02/11/2015"
"Wolverhampton City Council","http://opendatacommunities.org/id/metropolitan-district-council/wolverhampton","ALDI","11.49","Employment Programmes","5411","Provisions (Not for resale)","05/11/2015"
"Wolverhampton City Council","http://opendatacommunities.org/id/metropolitan-district-council/wolverhampton","TESCO STORES 3414","11.57","Director of Education","5411","Provisions (Not for resale)","13/11/2015"
"Wolverhampton City Council","http://opendatacommunities.org/id/metropolitan-district-council/wolverhampton","Amazon UK Marketplace","11.62","Independent Living Service","5942","Computing - Purchase of Hardware","13/11/2015"
"Wolverhampton City Council","http://opendatacommunities.org/id/metropolitan-district-council/wolverhampton","ASDA SUPERSTORE","11.67","Mayoral Expenses","5411","Clothing / Uniforms","09/11/2015"
"Wolverhampton City Council","http://opendatacommunities.org/id/metropolitan-district-council/wolverhampton","POST OFFICE COUNTER","11.7","Legal Services","9402","Comms - Postage","02/11/2015"
"Wolverhampton City Council","http://opendatacommunities.org/id/metropolitan-district-council/wolverhampton","Amazon UK Marketplace","11.73","School Improvement","5942","Catering","13/11/2015"
"Wolverhampton City Council","http://opendatacommunities.org/id/metropolitan-district-council/wolverhampton","TESCO STORE 2836","11.75","Towers Outdoor Education Centre","5411","Provisions (Not for resale)","09/11/2015"
"Wolverhampton City Council","http://opendatacommunities.org/id/metropolitan-district-council/wolverhampton","MAPLIN CANNOCK WS11","11.82","SEN Early Years Team","5732","Equipment - Purchase","05/11/2015"
"Wolverhampton City Council","http://opendatacommunities.org/id/metropolitan-district-council/wolverhampton","ASDA SUPERSTORE","12","CIN - Whitmore Reans CC - Area 5","5411","Provisions (Not for resale)","19/11/2015"
"Wolverhampton City Council","http://opendatacommunities.org/id/metropolitan-district-council/wolverhampton","WWW.BIRMINGHAM.GOV.UK","12","Head of Service - CINCP","8299","Services - Professional Fees","27/11/2015"
"Wolverhampton City Council","http://opendatacommunities.org/id/metropolitan-district-council/wolverhampton","B & Q","12.32","Caretakers Community Centre","5211","R&M - Departmental planned (external)","24/11/2015"
"Wolverhampton City Council","http://opendatacommunities.org/id/metropolitan-district-council/wolverhampton","ARGOS LTD","12.33","Duke Street Bungalows","5310","Provisions (Not for resale)","10/11/2015"
"Wolverhampton City Council","http://opendatacommunities.org/id/metropolitan-district-council/wolverhampton","TOOLSTATION LTD","12.75","Meals on Wheels","5251","Equipment - R & M","05/11/2015"
"Wolverhampton City Council","http://opendatacommunities.org/id/metropolitan-district-council/wolverhampton","B&M RETAIL LTD","12.83","Children's Village Nursery","5310","Equipment - Purchase","19/11/2015"
"Wolverhampton City Council","http://opendatacommunities.org/id/metropolitan-district-council/wolverhampton","FTPE WEBTIS 1","12.9","LAC Transitions Team","4112","Public Transport","05/11/2015"
"Wolverhampton City Council","http://opendatacommunities.org/id/metropolitan-district-council/wolverhampton","ASDA SUPERSTORE","13.2","Civic Centre Catering","5411","Provisions (Not for resale)","18/11/2015"
"Wolverhampton City Council","http://opendatacommunities.org/id/metropolitan-district-council/wolverhampton","ASDA SUPERSTORE","13.33","Upper Pendeford Farm Childrens Home","5411","Provisions (Not for resale)","24/11/2015"
"Wolverhampton City Council","http://opendatacommunities.org/id/metropolitan-district-council/wolverhampton","ASDA SUPERSTORE","13.5","Whitmore Reans - CIN SWU S17","5411","Provisions (Not for resale)","17/11/2015"
"Wolverhampton City Council","http://opendatacommunities.org/id/metropolitan-district-council/wolverhampton","ASDA SUPERSTORE","13.5","Valley Park - CIN SWU S17","5411","No Recourse to Public Funds","06/11/2015"
"Wolverhampton City Council","http://opendatacommunities.org/id/metropolitan-district-council/wolverhampton","TRAINLINE","13.51","Looked After Team 1","4112","Public Transport","26/11/2015"
"Wolverhampton City Council","http://opendatacommunities.org/id/metropolitan-district-council/wolverhampton","POST OFFICE COUNTER","13.53","Warstones - CIN SWU S17","9402","Comms - Postage","09/11/2015"
"Wolverhampton City Council","http://opendatacommunities.org/id/metropolitan-district-council/wolverhampton","FCB BAR TRIBUNA","13.65","Economic Development","5813","Educ Trips, Holidays, Outings, Activity","20/11/2015"
"Wolverhampton City Council","http://opendatacommunities.org/id/metropolitan-district-council/wolverhampton","Amazon EU","13.79","CIN - Bilston CC2 - Area 2","5969","Books","20/11/2015"
"Wolverhampton City Council","http://opendatacommunities.org/id/metropolitan-district-council/wolverhampton","OFFICE DEPOT","14.02","The Maltings","5111","Stationery","20/11/2015"
"Wolverhampton City Council","http://opendatacommunities.org/id/metropolitan-district-council/wolverhampton","TRAINLINE","14.94","Looked After Team 1","4112","Public Transport","05/11/2015"
"Wolverhampton City Council","http://opendatacommunities.org/id/metropolitan-district-council/wolverhampton","Amazon UK Marketplace","14.99","Customer Services","5942","Books","27/11/2015"
"Wolverhampton City Council","http://opendatacommunities.org/id/metropolitan-district-council/wolverhampton","ARGOS LTD","14.99","Arbor Scheme","5310","Equipment - Purchase","27/11/2015"
"Wolverhampton City Council","http://opendatacommunities.org/id/metropolitan-district-council/wolverhampton","ARGOS LTD","14.99","College of Further Education","5310","Computing - Consumables","12/11/2015"
"Wolverhampton City Council","http://opendatacommunities.org/id/metropolitan-district-council/wolverhampton","Amazon UK Marketplace","15","Legal Services","5942","Books","27/11/2015"
"Wolverhampton City Council","http://opendatacommunities.org/id/metropolitan-district-council/wolverhampton","B & Q","15","Cleaning of Buildings - General","5211","Equipment - Purchase","12/11/2015"
"Wolverhampton City Council","http://opendatacommunities.org/id/metropolitan-district-council/wolverhampton","POUNDWORLD RETAIL","15","Children & Family Contact Services","5310","Equipment - Purchase","23/11/2015"
"Wolverhampton City Council","http://opendatacommunities.org/id/metropolitan-district-council/wolverhampton","VERIFONE TAXI/PRIVATE","15.03","Headstart","4121","Client Transport","04/11/2015"
"Wolverhampton City Council","http://opendatacommunities.org/id/metropolitan-district-council/wolverhampton","TRAINLINE","15.05","Legal Services","4112","Public Transport","11/11/2015"
"Wolverhampton City Council","http://opendatacommunities.org/id/metropolitan-district-council/wolverhampton","HSE-CIVIL REGISTRATION","15.08","Head of Service - CINCP","9399","Services - Professional Fees","24/11/2015"
"Wolverhampton City Council","http://opendatacommunities.org/id/metropolitan-district-council/wolverhampton","WM MORRISONS","15.12","Priory Green - CIN SWU S17","5411","Provisions (Not for resale)","03/11/2015"
"Wolverhampton City Council","http://opendatacommunities.org/id/metropolitan-district-council/wolverhampton","TESCO PFS 2185","15.18","Community Enablement","5541","Provisions (Not for resale)","24/11/2015"
"Wolverhampton City Council","http://opendatacommunities.org/id/metropolitan-district-council/wolverhampton","ASDA SUPERSTORE","15.7","CIN - Whitmore Reans CC - Area 5","5411","Provisions (Not for resale)","27/11/2015"
"Wolverhampton City Council","http://opendatacommunities.org/id/metropolitan-district-council/wolverhampton","OFFICE DEPOT","15.99","Register Office","5111","Stationery","09/11/2015"
"Wolverhampton City Council","http://opendatacommunities.org/id/metropolitan-district-council/wolverhampton","HOMEZONE","16.17","LAC Transitions Team","5211","Client Allowances","19/11/2015"
"Wolverhampton City Council","http://opendatacommunities.org/id/metropolitan-district-council/wolverhampton","CUMMINGS BROTHERS LOCK","16.25","Caretakers Community Centre","7399","R&M - Departmental planned (external)","19/11/2015"
"Wolverhampton City Council","http://opendatacommunities.org/id/metropolitan-district-council/wolverhampton","Amazon UK Marketplace","16.45","MAST 6 - Priory Green","5942","Equipment - R & M","06/11/2015"
"Wolverhampton City Council","http://opendatacommunities.org/id/metropolitan-district-council/wolverhampton","SAINSBURYS (2340)","16.55","Mayoral Expenses","5411","Hospitality","04/11/2015"
"Wolverhampton City Council","http://opendatacommunities.org/id/metropolitan-district-council/wolverhampton","OFFICE DEPOT","16.57","MAST 1 - Deansfield","5111","Stationery","25/11/2015"
"Wolverhampton City Council","http://opendatacommunities.org/id/metropolitan-district-council/wolverhampton","WALSALL COUNCIL","17","LAC Transitions Team","9399","Services - Fees and Charges","26/11/2015"
"Wolverhampton City Council","http://opendatacommunities.org/id/metropolitan-district-council/wolverhampton","Amazon Svcs Europe,SAR","17.45","LAC Education Team (LACE)","5942","Equipment - Purchase","16/11/2015"
"Wolverhampton City Council","http://opendatacommunities.org/id/metropolitan-district-council/wolverhampton","Cross Country","17.5","MAST - Central Team","4112","Public Transport","10/11/2015"
"Wolverhampton City Council","http://opendatacommunities.org/id/metropolitan-district-council/wolverhampton","Amazon UK Marketplace","17.95","School Improvement","5942","Books","06/11/2015"
"Wolverhampton City Council","http://opendatacommunities.org/id/metropolitan-district-council/wolverhampton","B & Q","17.99","Caretakers Community Centre","5211","R&M - Departmental planned (external)","25/11/2015"
"Wolverhampton City Council","http://opendatacommunities.org/id/metropolitan-district-council/wolverhampton","Generator Barcelona","18.26","Economic Development","7011","Services - Supplies & Services to users","23/11/2015"
"Wolverhampton City Council","http://opendatacommunities.org/id/metropolitan-district-council/wolverhampton","POST OFFICE COUNTER","18.36","Legal Services","9402","Comms - Postage","13/11/2015"
"Wolverhampton City Council","http://opendatacommunities.org/id/metropolitan-district-council/wolverhampton","WILKO RETAIL LIMIT","18.4","Duke Street Bungalows","5722","Stationery","09/11/2015"
"Wolverhampton City Council","http://opendatacommunities.org/id/metropolitan-district-council/wolverhampton","TRAINLINE","18.82","SEN Special Education Admin","4112","Public Transport","25/11/2015"
"Wolverhampton City Council","http://opendatacommunities.org/id/metropolitan-district-council/wolverhampton","DECATHLON","18.98","Headstart","5941","Equipment - Purchase","02/11/2015"
"Wolverhampton City Council","http://opendatacommunities.org/id/metropolitan-district-council/wolverhampton","Amazon UK Marketplace","18.99","Customer Services","5942","Books","27/11/2015"
"Wolverhampton City Council","http://opendatacommunities.org/id/metropolitan-district-council/wolverhampton","LONDON MIDLAND INT","19","City Direct","4112","Public Transport","11/11/2015"
"Wolverhampton City Council","http://opendatacommunities.org/id/metropolitan-district-council/wolverhampton","WWW.DYNMARK.COM","19","Pupil & Student Support","7372","Computing - Purchase of Software","19/11/2015"
"Wolverhampton City Council","http://opendatacommunities.org/id/metropolitan-district-council/wolverhampton","SAINSBURYS 2040","19.25","Duke Street Bungalows","5411","Provisions (Not for resale)","17/11/2015"
"Wolverhampton City Council","http://opendatacommunities.org/id/metropolitan-district-council/wolverhampton","OFFICE DEPOT","19.29","Headstart","5111","Stationery","04/11/2015"
"Wolverhampton City Council","http://opendatacommunities.org/id/metropolitan-district-council/wolverhampton","Amazon UK Marketplace","19.72","CIN - Bilston CC2 - Area 2","5942","Books","13/11/2015"
"Wolverhampton City Council","http://opendatacommunities.org/id/metropolitan-district-council/wolverhampton","WWW.VIKING-DIRECT.CO.U","19.74","Creative Studies Delivery Area","5111","Materials","16/11/2015"
"Wolverhampton City Council","http://opendatacommunities.org/id/metropolitan-district-council/wolverhampton","B&M RETAIL","19.8","Headstart","5310","Equipment - Purchase","02/11/2015"
"Wolverhampton City Council","http://opendatacommunities.org/id/metropolitan-district-council/wolverhampton","TRAINLINE","19.84","Whitmore Reans - CIN SWU S17","4112","Public Transport","25/11/2015"
"Wolverhampton City Council","http://opendatacommunities.org/id/metropolitan-district-council/wolverhampton","WILKO RETAIL LIMIT","19.97","Service Wide","5722","Equipment - Purchase","11/11/2015"
"Wolverhampton City Council","http://opendatacommunities.org/id/metropolitan-district-council/wolverhampton","COUNTY COURT","20","Rents Management","9222","Services - Professional Fees","24/11/2015"
"Wolverhampton City Council","http://opendatacommunities.org/id/metropolitan-district-council/wolverhampton","E00931600000000","20","MAST 4 - Warstones","6011","Equipment - Purchase","02/11/2015"
"Wolverhampton City Council","http://opendatacommunities.org/id/metropolitan-district-council/wolverhampton","NETWORK WEST MIDLANDS","20","Technical Material","9399","Public Transport","03/11/2015"
"Wolverhampton City Council","http://opendatacommunities.org/id/metropolitan-district-council/wolverhampton","TESCO STORE 3414","20","Parking Enforcement","5411","Provisions (Not for resale)","19/11/2015"
"Wolverhampton City Council","http://opendatacommunities.org/id/metropolitan-district-council/wolverhampton","TESCO STORE 3414","20","Parking Enforcement","5411","Provisions (Not for resale)","17/11/2015"
"Wolverhampton City Council","http://opendatacommunities.org/id/metropolitan-district-council/wolverhampton","G & M HALE (SUNDRIES)","20.2","Creative Studies Delivery Area","5992","Materials for resale","09/11/2015"
"Wolverhampton City Council","http://opendatacommunities.org/id/metropolitan-district-council/wolverhampton","UTILITY WAREHOUSE","20.35","HRA General","4900","Electricity","26/11/2015"
"Wolverhampton City Council","http://opendatacommunities.org/id/metropolitan-district-council/wolverhampton","Amazon EU","20.39","CIN - Bilston CC2 - Area 2","5969","Books","20/11/2015"
"Wolverhampton City Council","http://opendatacommunities.org/id/metropolitan-district-council/wolverhampton","Amazon UK Marketplace","20.49","Cleaning of Buildings - General","5942","Equipment - Purchase","26/11/2015"
"Wolverhampton City Council","http://opendatacommunities.org/id/metropolitan-district-council/wolverhampton","ASDA STORES LTD 5878","20.5","Towers Outdoor Education Centre","5411","Provisions (Not for resale)","09/11/2015"
"Wolverhampton City Council","http://opendatacommunities.org/id/metropolitan-district-council/wolverhampton","HOMEZONE","20.82","LAC Transitions Team","5211","Client Allowances","30/11/2015"
"Wolverhampton City Council","http://opendatacommunities.org/id/metropolitan-district-council/wolverhampton","SCREWFIX DIRECT","20.82","The Maltings","5211","Fixtures and Fittings - Purchases","11/11/2015"
"Wolverhampton City Council","http://opendatacommunities.org/id/metropolitan-district-council/wolverhampton","Serenata Flowers","20.82","CIN - Bilston CC2 - Area 2","5992","Educ Trips, Holidays, Outings, Activity","18/11/2015"
"Wolverhampton City Council","http://opendatacommunities.org/id/metropolitan-district-council/wolverhampton","Serenata Flowers","20.82","CIN - Bilston CC1 - Area 2","5992","Educ Trips, Holidays, Outings, Activity","18/11/2015"
"Wolverhampton City Council","http://opendatacommunities.org/id/metropolitan-district-council/wolverhampton","TRAINLINE","20.86","Looked After Team 1","4112","Public Transport","12/11/2015"
"Wolverhampton City Council","http://opendatacommunities.org/id/metropolitan-district-council/wolverhampton","TRAINLINE","20.86","Looked After Team 1","4112","Public Transport","12/11/2015"
"Wolverhampton City Council","http://opendatacommunities.org/id/metropolitan-district-council/wolverhampton","TRAINLINE","20.86","Looked After Team 1","4112","Public Transport","12/11/2015"
"Wolverhampton City Council","http://opendatacommunities.org/id/metropolitan-district-council/wolverhampton","REGISTRARS OFFICE","21","Childrens with Disabilities Team","8299","Services - Fees and Charges","17/11/2015"
"Wolverhampton City Council","http://opendatacommunities.org/id/metropolitan-district-council/wolverhampton","WEST PARK NEWS","21","CIN - Whitmore Reans CC - Area 5","5411","Provisions (Not for resale)","04/11/2015"
"Wolverhampton City Council","http://opendatacommunities.org/id/metropolitan-district-council/wolverhampton","CENTURY ELECTRICAL WHO","21.29","Public Conveniences","5065","Equipment - Purchase","20/11/2015"
"Wolverhampton City Council","http://opendatacommunities.org/id/metropolitan-district-council/wolverhampton","WM MORRISON 024","21.64","CIN - Bilston CC2 - Area 2","5411","Comms - Postage","10/11/2015"
"Wolverhampton City Council","http://opendatacommunities.org/id/metropolitan-district-council/wolverhampton","B & Q","21.78","Ernest Bold Court","5211","Equipment - R & M","04/11/2015"
"Wolverhampton City Council","http://opendatacommunities.org/id/metropolitan-district-council/wolverhampton","RYMAN","21.96","Education And Access","5943","Materials","25/11/2015"
"Wolverhampton City Council","http://opendatacommunities.org/id/metropolitan-district-council/wolverhampton","MACMILLAN PUBLISHERS L","21.99","Newly Qualified Social Workers","5192","Books","11/11/2015"
"Wolverhampton City Council","http://opendatacommunities.org/id/metropolitan-district-council/wolverhampton","ASDA SUPERSTORE","22","LAC Transitions Team","5411","Provisions (Not for resale)","25/11/2015"
"Wolverhampton City Council","http://opendatacommunities.org/id/metropolitan-district-council/wolverhampton","CARTRIDGE DISCOUNT","22.08","Civic Halls Non Direct Management A/C","5045","Stationery","11/11/2015"
"Wolverhampton City Council","http://opendatacommunities.org/id/metropolitan-district-council/wolverhampton","Virgintrains.co.uk","22.5","Parent / Partnership Service","4112","Public Transport","25/11/2015"
"Wolverhampton City Council","http://opendatacommunities.org/id/metropolitan-district-council/wolverhampton","OFFICE DEPOT","22.9","LAC Admin Team","5111","Stationery","27/11/2015"
"Wolverhampton City Council","http://opendatacommunities.org/id/metropolitan-district-council/wolverhampton","Amazon EU","23.04","Children's Village Children Centre","5969","Stationery","19/11/2015"
"Wolverhampton City Council","http://opendatacommunities.org/id/metropolitan-district-council/wolverhampton","NORTH LINCOLNSHIRE COU","23.1","Parking Enforcement","9399","Services - Fees and Charges","06/11/2015"
"Wolverhampton City Council","http://opendatacommunities.org/id/metropolitan-district-council/wolverhampton","GRO HM PASSPORT OFFICE","23.4","Legal Services","9399","Services - Fees and Charges","03/11/2015"
"Wolverhampton City Council","http://opendatacommunities.org/id/metropolitan-district-council/wolverhampton","Amazon Svcs Europe,SAR","23.83","Towers Outdoor Education Centre","5942","Equipment - Purchase","12/11/2015"
"Wolverhampton City Council","http://opendatacommunities.org/id/metropolitan-district-council/wolverhampton","POST OFFICE COUNTER","23.94","Warstones - CIN SWU S17","9402","Comms - Postage","27/11/2015"
"Wolverhampton City Council","http://opendatacommunities.org/id/metropolitan-district-council/wolverhampton","WWW.NECCONTRACT.COM","23.95","Landscape","2741","Publications","06/11/2015"
"Wolverhampton City Council","http://opendatacommunities.org/id/metropolitan-district-council/wolverhampton","Amazon UK Marketplace","23.99","LAC Education Team (LACE)","5942","Equipment - Purchase","18/11/2015"
"Wolverhampton City Council","http://opendatacommunities.org/id/metropolitan-district-council/wolverhampton","FARNELL INTERNET","24.2","Technician","5065","Equipment - Purchase","19/11/2015"
"Wolverhampton City Council","http://opendatacommunities.org/id/metropolitan-district-council/wolverhampton","CAR PARKING OFFICE","24.3","Direct Delivery Team ( L.& D.)","7523","Car Allowances","13/11/2015"
"Wolverhampton City Council","http://opendatacommunities.org/id/metropolitan-district-council/wolverhampton","ITUNES.COM/BILL","24.83","Learning Technologies","5735","Computing - Purchase of Software","17/11/2015"
"Wolverhampton City Council","http://opendatacommunities.org/id/metropolitan-district-council/wolverhampton","Amazon EU","24.99","Connexions Contract","5969","Computing - Consumables","30/11/2015"
"Wolverhampton City Council","http://opendatacommunities.org/id/metropolitan-district-council/wolverhampton","Amazon EU","24.99","MAST 5 - Valley Park","5969","Equipment - Purchase","12/11/2015"
"Wolverhampton City Council","http://opendatacommunities.org/id/metropolitan-district-council/wolverhampton","Amazon EU","24.99","MAST 5 - Valley Park","5969","Equipment - Purchase","12/11/2015"
"Wolverhampton City Council","http://opendatacommunities.org/id/metropolitan-district-council/wolverhampton","Amazon EU","24.99","MAST 5 - Valley Park","5969","Equipment - Purchase","12/11/2015"
"Wolverhampton City Council","http://opendatacommunities.org/id/metropolitan-district-council/wolverhampton","FLOWERS IN THE CITY","24.99","Public Health - Healthier Places Team","5992","Hospitality","18/11/2015"
"Wolverhampton City Council","http://opendatacommunities.org/id/metropolitan-district-council/wolverhampton","STAFFORDSHIRE COUNTY C","25","Head of Service - CINCP","9399","Services - Professional Fees","18/11/2015"
"Wolverhampton City Council","http://opendatacommunities.org/id/metropolitan-district-council/wolverhampton","WILKO RETAIL LIMIT","25.12","Children & Family Contact Services","5722","Equipment - Purchase","02/11/2015"
"Wolverhampton City Council","http://opendatacommunities.org/id/metropolitan-district-council/wolverhampton","Amazon Svcs Europe,SAR","25.21","Parent / Partnership Service","5942","Equipment - Purchase","19/11/2015"
"Wolverhampton City Council","http://opendatacommunities.org/id/metropolitan-district-council/wolverhampton","OFFICE DEPOT","25.49","MAST 1 - Deansfield","5111","Equipment - Purchase","13/11/2015"
"Wolverhampton City Council","http://opendatacommunities.org/id/metropolitan-district-council/wolverhampton","ARGOS LTD","26.12","Duke Street Bungalows","5310","Provisions (Not for resale)","10/11/2015"
"Wolverhampton City Council","http://opendatacommunities.org/id/metropolitan-district-council/wolverhampton","OFFICE DEPOT","26.13","Commissioning Disabilities","5111","Stationery","30/11/2015"
"Wolverhampton City Council","http://opendatacommunities.org/id/metropolitan-district-council/wolverhampton","Amazon EU","26.29","The Maltings","5969","Equipment - Health and Safety","16/11/2015"
"Wolverhampton City Council","http://opendatacommunities.org/id/metropolitan-district-council/wolverhampton","B & Q","26.38","AES Staff Development","5211","Materials","17/11/2015"
"Wolverhampton City Council","http://opendatacommunities.org/id/metropolitan-district-council/wolverhampton","OFFICE DEPOT","26.59","Property Services - Business Support","5111","Stationery","12/11/2015"
"Wolverhampton City Council","http://opendatacommunities.org/id/metropolitan-district-council/wolverhampton","OFFICE DEPOT","26.92","MAST 5 - Valley Park","5111","Stationery","16/11/2015"
"Wolverhampton City Council","http://opendatacommunities.org/id/metropolitan-district-council/wolverhampton","ASDA SUPERSTORE","27","Whitmore Reans - CIN SWU S17","5411","Provisions (Not for resale)","17/11/2015"
"Wolverhampton City Council","http://opendatacommunities.org/id/metropolitan-district-council/wolverhampton","ASDA SUPERSTORE","27.01","Civic Centre Catering","5411","Provisions (Not for resale)","18/11/2015"
"Wolverhampton City Council","http://opendatacommunities.org/id/metropolitan-district-council/wolverhampton","TRAINLINE","27.18","Youth Offending Team","4112","Public Transport","26/11/2015"
"Wolverhampton City Council","http://opendatacommunities.org/id/metropolitan-district-council/wolverhampton","Amazon EU","27.22","Bert Williams Leisure Centre","5969","Equipment - Purchase","02/11/2015"
"Wolverhampton City Council","http://opendatacommunities.org/id/metropolitan-district-council/wolverhampton","UNTOUCHABLES","27.5","Cemeteries","5231","Materials","26/11/2015"
"Wolverhampton City Council","http://opendatacommunities.org/id/metropolitan-district-council/wolverhampton","OFFICE DEPOT","27.71","Archives","5111","Stationery","27/11/2015"
"Wolverhampton City Council","http://opendatacommunities.org/id/metropolitan-district-council/wolverhampton","OFFICE DEPOT","27.84","Avenues - CIN SWU S17","5111","Stationery","18/11/2015"
"Wolverhampton City Council","http://opendatacommunities.org/id/metropolitan-district-council/wolverhampton","OFFICE DEPOT","27.95","Eastfield 2 - CIN SWU S17","5111","Stationery","02/11/2015"
"Wolverhampton City Council","http://opendatacommunities.org/id/metropolitan-district-council/wolverhampton","Amazon UK Marketplace","28","LAC Admin Team","5942","Books","02/11/2015"
"Wolverhampton City Council","http://opendatacommunities.org/id/metropolitan-district-council/wolverhampton","SAINSBURYS (2340)","28.3","Civic Centre Catering","5411","Provisions (Not for resale)","09/11/2015"
"Wolverhampton City Council","http://opendatacommunities.org/id/metropolitan-district-council/wolverhampton","ARGOS LTD","28.49","Swan Bank","5310","Equipment - Purchase","09/11/2015"
"Wolverhampton City Council","http://opendatacommunities.org/id/metropolitan-district-council/wolverhampton","WWW.MDNSUPPLIES.CO.UK","28.76","Civic Centre","5085","Equipment - Purchase","25/11/2015"
"Wolverhampton City Council","http://opendatacommunities.org/id/metropolitan-district-council/wolverhampton","REGISTRARS OFFICE","29","Head of Service - CINCP","8299","Services - Professional Fees","16/11/2015"
"Wolverhampton City Council","http://opendatacommunities.org/id/metropolitan-district-council/wolverhampton","REGISTRARS OFFICE","29","Head of Service - CINCP","8299","Services - Professional Fees","16/11/2015"
"Wolverhampton City Council","http://opendatacommunities.org/id/metropolitan-district-council/wolverhampton","REGISTRARS OFFICE","29","Head of Service - CINCP","8299","Services - Professional Fees","16/11/2015"
"Wolverhampton City Council","http://opendatacommunities.org/id/metropolitan-district-council/wolverhampton","TRAINLINE","29.12","Looked After Team 1","4112","Public Transport","11/11/2015"
"Wolverhampton City Council","http://opendatacommunities.org/id/metropolitan-district-council/wolverhampton","OFFICE DEPOT","29.79","Bradley Resource Centre","5111","Stationery","11/11/2015"
"Wolverhampton City Council","http://opendatacommunities.org/id/metropolitan-district-council/wolverhampton","PARKIN FABRICS LIM","29.79","Foundation Studies","5949","Materials","04/11/2015"
"Wolverhampton City Council","http://opendatacommunities.org/id/metropolitan-district-council/wolverhampton","SCREWFIX DIRECT","29.85","Civic Centre","5211","Materials","20/11/2015"
"Wolverhampton City Council","http://opendatacommunities.org/id/metropolitan-district-council/wolverhampton","Amazon UK Marketplace","29.99","Parent / Partnership Service","5942","Comms - Postage","18/11/2015"
"Wolverhampton City Council","http://opendatacommunities.org/id/metropolitan-district-council/wolverhampton","JAMES LISTER & SON","30","Employment Service - Old Tree Nursery","8911","Services - Professional Fees","25/11/2015"
"Wolverhampton City Council","http://opendatacommunities.org/id/metropolitan-district-council/wolverhampton","MIDLAND IMPORTS","30","Mayoral Expenses","5970","Hospitality","05/11/2015"
"Wolverhampton City Council","http://opendatacommunities.org/id/metropolitan-district-council/wolverhampton","THE POST OFFICE","30.24","Graiseley - CIN SWU S17","9402","Comms - Postage","26/11/2015"
"Wolverhampton City Council","http://opendatacommunities.org/id/metropolitan-district-council/wolverhampton","OFFICE DEPOT","30.69","Duke Street Bungalows","5111","Stationery","04/11/2015"
"Wolverhampton City Council","http://opendatacommunities.org/id/metropolitan-district-council/wolverhampton","BRITANNIA","30.83","Mental Health Assessment & Care Mgmt","7011","Services - Supplies & Services to users","13/11/2015"
"Wolverhampton City Council","http://opendatacommunities.org/id/metropolitan-district-council/wolverhampton","TRAINLINE","30.96","SEN Special Education Admin","4112","Public Transport","18/11/2015"
"Wolverhampton City Council","http://opendatacommunities.org/id/metropolitan-district-council/wolverhampton","LIDL UK","31.09","Youth Service - General","5411","Provisions (Not for resale)","25/11/2015"
"Wolverhampton City Council","http://opendatacommunities.org/id/metropolitan-district-council/wolverhampton","CARVER/WOLVERHAMPTON/L","31.13","Wholesale Market Facilities Management","5211","Cleaning Supplies and Materials","20/11/2015"
"Wolverhampton City Council","http://opendatacommunities.org/id/metropolitan-district-council/wolverhampton","G & M HALE (SUNDRIES)","31.45","Discretionary Fund","5992","Materials","03/11/2015"
"Wolverhampton City Council","http://opendatacommunities.org/id/metropolitan-district-council/wolverhampton","ARGOS LTD","31.49","Children's Village Nursery","5310","Equipment - Purchase","19/11/2015"
"Wolverhampton City Council","http://opendatacommunities.org/id/metropolitan-district-council/wolverhampton","OFFICE DEPOT","31.53","Independent Living Service","5111","Stationery","11/11/2015"
"Wolverhampton City Council","http://opendatacommunities.org/id/metropolitan-district-council/wolverhampton","FTPE WEBTIS 1","31.7","LAC Transitions Team","4112","Public Transport","20/11/2015"
"Wolverhampton City Council","http://opendatacommunities.org/id/metropolitan-district-council/wolverhampton","FTPE WEBTIS 1","31.7","LAC Transitions Team","4112","Educ Trips, Holidays, Outings, Activity","11/11/2015"
"Wolverhampton City Council","http://opendatacommunities.org/id/metropolitan-district-council/wolverhampton","OFFICE DEPOT","32.11","CIN - Whitmore Reans CC - Area 5","5111","Stationery","04/11/2015"
"Wolverhampton City Council","http://opendatacommunities.org/id/metropolitan-district-council/wolverhampton","BRITANNIA","32.5","Mental Health Assessment & Care Mgmt","7011","Services - Supplies & Services to users","19/11/2015"
"Wolverhampton City Council","http://opendatacommunities.org/id/metropolitan-district-council/wolverhampton","Amazon EU","32.94","Scrutiny & Transparency","5969","Equipment - Purchase","11/11/2015"
"Wolverhampton City Council","http://opendatacommunities.org/id/metropolitan-district-council/wolverhampton","OFFICE DEPOT","33.04","Childrens with Disabilities Team","5111","Stationery","17/11/2015"
"Wolverhampton City Council","http://opendatacommunities.org/id/metropolitan-district-council/wolverhampton","WISEPOPS.COM","33.09","City Direct","7372","Computing - Purchase of Software","20/11/2015"
"Wolverhampton City Council","http://opendatacommunities.org/id/metropolitan-district-council/wolverhampton","BIRMINGHAM HIPPODROME","33.12","Swan Bank","7922","Educ Trips, Holidays, Outings, Activity","16/11/2015"
"Wolverhampton City Council","http://opendatacommunities.org/id/metropolitan-district-council/wolverhampton","ITUNES.COM/BILL","33.17","Learning Technologies","5735","Computing - Purchase of Software","17/11/2015"
"Wolverhampton City Council","http://opendatacommunities.org/id/metropolitan-district-council/wolverhampton","ARGOS LTD","33.32","Parks - South West Area Management","5310","Equipment - Purchase","06/11/2015"
"Wolverhampton City Council","http://opendatacommunities.org/id/metropolitan-district-council/wolverhampton","RYMAN","33.32","Music Support Team","5943","Stationery","18/11/2015"
"Wolverhampton City Council","http://opendatacommunities.org/id/metropolitan-district-council/wolverhampton","SCREWFIX DIRECT","33.32","Parkfields Centre","5211","Equipment - Purchase","05/11/2015"
"Wolverhampton City Council","http://opendatacommunities.org/id/metropolitan-district-council/wolverhampton","MAILCHIMP","33.43","City Direct","7399","Equipment - Purchase","25/11/2015"
"Wolverhampton City Council","http://opendatacommunities.org/id/metropolitan-district-council/wolverhampton","OFFICE DEPOT","33.78","Register Office","5111","Stationery","09/11/2015"
"Wolverhampton City Council","http://opendatacommunities.org/id/metropolitan-district-council/wolverhampton","SAINSBURYS (2340)","33.8","Creative Studies Delivery Area","5411","Provisions (Not for resale)","25/11/2015"
"Wolverhampton City Council","http://opendatacommunities.org/id/metropolitan-district-council/wolverhampton","TRAINLINE","34.02","Legal Services","4112","Public Transport","25/11/2015"
"Wolverhampton City Council","http://opendatacommunities.org/id/metropolitan-district-council/wolverhampton","JOHNSTONES DEC CENTRE","34.65","Caretakers Community Centre","5231","R&M - Departmental planned (external)","20/11/2015"
"Wolverhampton City Council","http://opendatacommunities.org/id/metropolitan-district-council/wolverhampton","IKEA","34.87","Bilston Museum","5719","Equipment - Purchase","10/11/2015"
"Wolverhampton City Council","http://opendatacommunities.org/id/metropolitan-district-council/wolverhampton","POST OFFICE COUNTER","34.96","CIN - Alfred Squire Square MAST - Area 8","9402","Comms - Postage","11/11/2015"
"Wolverhampton City Council","http://opendatacommunities.org/id/metropolitan-district-council/wolverhampton","SAINSBURYS SACAT 2040","35","Duke Street Bungalows","5411","Provisions (Not for resale)","02/11/2015"
"Wolverhampton City Council","http://opendatacommunities.org/id/metropolitan-district-council/wolverhampton","TRAINLINE","35.04","AES Staff Development","4112","Public Transport","09/11/2015"
"Wolverhampton City Council","http://opendatacommunities.org/id/metropolitan-district-council/wolverhampton","OFFICE DEPOT","35.49","Fleet Management","5111","Computing - Purchase of Hardware","04/11/2015"
"Wolverhampton City Council","http://opendatacommunities.org/id/metropolitan-district-council/wolverhampton","Amazon UK Marketplace","36.99","Technician","5942","Protective Clothing","06/11/2015"
"Wolverhampton City Council","http://opendatacommunities.org/id/metropolitan-district-council/wolverhampton","Amazon EU","37.08","Safeguarding Admin Resource","5969","Equipment - Purchase","30/11/2015"
"Wolverhampton City Council","http://opendatacommunities.org/id/metropolitan-district-council/wolverhampton","ASDA HOME SHOPPING","37.37","Swan Bank","5411","Provisions (Not for resale)","11/11/2015"
"Wolverhampton City Council","http://opendatacommunities.org/id/metropolitan-district-council/wolverhampton","CENTRAL TAXIS LTD","37.5","LAC Education Team (LACE)","4121","Client Transport","09/11/2015"
"Wolverhampton City Council","http://opendatacommunities.org/id/metropolitan-district-council/wolverhampton","FTPE WEBTIS 1","37.8","LAC Transitions Team","4112","Public Transport","20/11/2015"
"Wolverhampton City Council","http://opendatacommunities.org/id/metropolitan-district-council/wolverhampton","ASDA SUPERSTORE","37.98","Swan Bank","5411","Provisions (Not for resale)","04/11/2015"
"Wolverhampton City Council","http://opendatacommunities.org/id/metropolitan-district-council/wolverhampton","TESCO STORE 2836","38.8","Towers Outdoor Education Centre","5411","Provisions (Not for resale)","18/11/2015"
"Wolverhampton City Council","http://opendatacommunities.org/id/metropolitan-district-council/wolverhampton","TRAINLINE","39.98","Adoption and Residence Team & Allowances","4112","Public Transport","24/11/2015"
"Wolverhampton City Council","http://opendatacommunities.org/id/metropolitan-district-council/wolverhampton","HALX DUDLEY MERRY HILL","40","Community Enablement","6011","Public Transport","02/11/2015"
"Wolverhampton City Council","http://opendatacommunities.org/id/metropolitan-district-council/wolverhampton","HALX DUDLEY MERRY HILL","40","Community Enablement","6011","Educ Trips, Holidays, Outings, Activity","02/11/2015"
"Wolverhampton City Council","http://opendatacommunities.org/id/metropolitan-district-council/wolverhampton","INVICTA RETAIL SYSTEMS","40","Register Office","5722","Equipment - Purchase","05/11/2015"
"Wolverhampton City Council","http://opendatacommunities.org/id/metropolitan-district-council/wolverhampton","LOYD WEDNESFIELD, WOLV","40","Duke Street Bungalows","6011","Financial Assistance In Exceptional Circ","10/11/2015"
"Wolverhampton City Council","http://opendatacommunities.org/id/metropolitan-district-council/wolverhampton","NOTEMACHINE","40","Court of Protection, Funerals Prot Prop","6011","Services - Professional Fees","26/11/2015"
"Wolverhampton City Council","http://opendatacommunities.org/id/metropolitan-district-council/wolverhampton","NOTEMACHINE","40","MAST 7 - Berrybrook","6011","Financial Assistance In Exceptional Circ","18/11/2015"
"Wolverhampton City Council","http://opendatacommunities.org/id/metropolitan-district-council/wolverhampton","SEVERN TRENT WATER","40","Looked After Team 2","4900","Electricity","13/11/2015"
"Wolverhampton City Council","http://opendatacommunities.org/id/metropolitan-district-council/wolverhampton","OFFICE DEPOT","40.13","Fleet Management","5111","Stationery","16/11/2015"
"Wolverhampton City Council","http://opendatacommunities.org/id/metropolitan-district-council/wolverhampton","ASDA HOME SHOPPING","40.32","Swan Bank","5411","Provisions (Not for resale)","23/11/2015"
"Wolverhampton City Council","http://opendatacommunities.org/id/metropolitan-district-council/wolverhampton","PREMIER INN","40.83","Bilston 2 - CIN SWU S17","3811","Accommodation Costs","04/11/2015"
"Wolverhampton City Council","http://opendatacommunities.org/id/metropolitan-district-council/wolverhampton","B & Q","41.1","Caretakers Community Centre","5211","R&M - Departmental planned (external)","11/11/2015"
"Wolverhampton City Council","http://opendatacommunities.org/id/metropolitan-district-council/wolverhampton","Amazon EU","41.26","Legal Services","5969","Stationery","27/11/2015"
"Wolverhampton City Council","http://opendatacommunities.org/id/metropolitan-district-council/wolverhampton","Amazon UK Marketplace","41.58","Pupil & Student Support","5942","Books","06/11/2015"
"Wolverhampton City Council","http://opendatacommunities.org/id/metropolitan-district-council/wolverhampton","CROMARTIE HOBBYCRAFT L","41.67","Bilston Museum","5970","Training Expenses","05/11/2015"
"Wolverhampton City Council","http://opendatacommunities.org/id/metropolitan-district-council/wolverhampton","UTILITY WAREHOUSE","41.73","HRA General","4900","Electricity","03/11/2015"
"Wolverhampton City Council","http://opendatacommunities.org/id/metropolitan-district-council/wolverhampton","WILKO.COM","42","Headstart","5722","Equipment - Purchase","02/11/2015"
"Wolverhampton City Council","http://opendatacommunities.org/id/metropolitan-district-council/wolverhampton","CARVER/WOLVERHAMPTON/L","42.26","Wholesale Market Facilities Management","5211","Equipment - Purchase","10/11/2015"
"Wolverhampton City Council","http://opendatacommunities.org/id/metropolitan-district-council/wolverhampton","TRAINLINE","42.33","DCMS Wolfson - Contemp Gallery Refurb","4112","Public Transport","16/11/2015"
"Wolverhampton City Council","http://opendatacommunities.org/id/metropolitan-district-council/wolverhampton","Amazon UK Marketplace","42.66","Foundation Studies","5942","Equipment - Purchase","18/11/2015"
"Wolverhampton City Council","http://opendatacommunities.org/id/metropolitan-district-council/wolverhampton","BURTECH CYF","42.7","Towers Outdoor Education Centre","7538","Vehicle Maintenance - Repairs","13/11/2015"
"Wolverhampton City Council","http://opendatacommunities.org/id/metropolitan-district-council/wolverhampton","TESCO DIRECT","43","Bert Williams Leisure Centre","5999","Equipment - Purchase","02/11/2015"
"Wolverhampton City Council","http://opendatacommunities.org/id/metropolitan-district-council/wolverhampton","G & M HALE (SUNDRIES)","43.55","Creative Studies Delivery Area","5992","Materials for resale","24/11/2015"
"Wolverhampton City Council","http://opendatacommunities.org/id/metropolitan-district-council/wolverhampton","CENTURY ELECTRICAL WHO","44","Caretakers Community Centre","5065","R&M - Departmental planned (external)","23/11/2015"
"Wolverhampton City Council","http://opendatacommunities.org/id/metropolitan-district-council/wolverhampton","WWW.BAKERROSS.CO.UK","44","Bilston Museum","5970","Materials","18/11/2015"
"Wolverhampton City Council","http://opendatacommunities.org/id/metropolitan-district-council/wolverhampton","WWW.UKSAFETYFOOTWEAR.C","44.15","Art Gallery","5137","Clothing / Uniforms","12/11/2015"
"Wolverhampton City Council","http://opendatacommunities.org/id/metropolitan-district-council/wolverhampton","THE RANGE","44.35","Children & Family Contact Services","5311","Equipment - Purchase","05/11/2015"
"Wolverhampton City Council","http://opendatacommunities.org/id/metropolitan-district-council/wolverhampton","ARGOS RETAIL GROUP","44.94","LAC Transitions Team","5310","Equipment - Purchase","26/11/2015"
"Wolverhampton City Council","http://opendatacommunities.org/id/metropolitan-district-council/wolverhampton","LIDL UK","44.94","Children & Family Contact Services","5411","Equipment - Purchase","17/11/2015"
"Wolverhampton City Council","http://opendatacommunities.org/id/metropolitan-district-council/wolverhampton","ASDA HOME SHOPPING","45.32","Ernest Bold Court","5411","Provisions (Not for resale)","25/11/2015"
"Wolverhampton City Council","http://opendatacommunities.org/id/metropolitan-district-council/wolverhampton","SAINSBURYS (2340)","45.65","Discretionary Fund","5411","Provisions (Not for resale)","10/11/2015"
"Wolverhampton City Council","http://opendatacommunities.org/id/metropolitan-district-council/wolverhampton","Amazon UK Marketplace","45.8","Foundation Studies","5942","Equipment - Purchase","16/11/2015"
"Wolverhampton City Council","http://opendatacommunities.org/id/metropolitan-district-council/wolverhampton","OFFICE DEPOT","45.96","Benefits","5111","Stationery","16/11/2015"
"Wolverhampton City Council","http://opendatacommunities.org/id/metropolitan-district-council/wolverhampton","Wix.com","46.57","Technical Support","5817","Computing - Purchase of Software","20/11/2015"
"Wolverhampton City Council","http://opendatacommunities.org/id/metropolitan-district-council/wolverhampton","Wix.com","46.57","Technical Support","5817","Computing - Purchase of Software","16/11/2015"
"Wolverhampton City Council","http://opendatacommunities.org/id/metropolitan-district-council/wolverhampton","Wix.com","46.57","Technical Support","5817","Computing - Purchase of Software","16/11/2015"
"Wolverhampton City Council","http://opendatacommunities.org/id/metropolitan-district-council/wolverhampton","WIX.COM","46.57","Technical Support","5968","Subscriptions","16/11/2015"
"Wolverhampton City Council","http://opendatacommunities.org/id/metropolitan-district-council/wolverhampton","Amazon UK Marketplace","47.42","Foundation Studies","5942","Equipment - Purchase","16/11/2015"
"Wolverhampton City Council","http://opendatacommunities.org/id/metropolitan-district-council/wolverhampton","ARGOS LTD","47.49","Duke Street Bungalows","5310","Equipment - Purchase","10/11/2015"
"Wolverhampton City Council","http://opendatacommunities.org/id/metropolitan-district-council/wolverhampton","Amazon UK Marketplace","47.73","College of Further Education","5942","Books","06/11/2015"
"Wolverhampton City Council","http://opendatacommunities.org/id/metropolitan-district-council/wolverhampton","Amazon UK Marketplace","47.9","Play General","5942","Equipment - Purchase","27/11/2015"
"Wolverhampton City Council","http://opendatacommunities.org/id/metropolitan-district-council/wolverhampton","HENLEY HOTEL","47.92","AES Staff Development","7011","Services - Supplies & Services to users","27/11/2015"
"Wolverhampton City Council","http://opendatacommunities.org/id/metropolitan-district-council/wolverhampton","Amazon EU","48","Legal Services","5969","Books","12/11/2015"
"Wolverhampton City Council","http://opendatacommunities.org/id/metropolitan-district-council/wolverhampton","NEXT-0637","48.33","Mayoral Expenses","5651","Clothing / Uniforms","09/11/2015"
"Wolverhampton City Council","http://opendatacommunities.org/id/metropolitan-district-council/wolverhampton","UNTOUCHABLES","48.33","Education Catering - General Overheads","5231","Materials","26/11/2015"
"Wolverhampton City Council","http://opendatacommunities.org/id/metropolitan-district-council/wolverhampton","THE POST OFFICE","49","Looked After Team 1","9402","Comms - Postage","11/11/2015"
"Wolverhampton City Council","http://opendatacommunities.org/id/metropolitan-district-council/wolverhampton","OFFICE DEPOT","49.35","LAC Education Team (LACE)","5111","Equipment - Purchase","25/11/2015"
"Wolverhampton City Council","http://opendatacommunities.org/id/metropolitan-district-council/wolverhampton","WWW.LOCKERTEK.CO.U","49.52","Central Baths","5943","Equipment - Purchase","03/11/2015"
"Wolverhampton City Council","http://opendatacommunities.org/id/metropolitan-district-council/wolverhampton","MAPLIN WOLVERHAMPT WV1","49.72","Public Health Support Costs","5732","Equipment - Purchase","12/11/2015"
"Wolverhampton City Council","http://opendatacommunities.org/id/metropolitan-district-council/wolverhampton","OFFICE DEPOT","49.94","Parking Enforcement","5111","Stationery","09/11/2015"
"Wolverhampton City Council","http://opendatacommunities.org/id/metropolitan-district-council/wolverhampton","CIVIL JUSTICE CENT","50","Legal Services","9222","Services - Professional Fees","26/11/2015"
"Wolverhampton City Council","http://opendatacommunities.org/id/metropolitan-district-council/wolverhampton","E01510300000000","50","Emergency Duty Team","6011","Financial Assistance In Exceptional Circ","16/11/2015"
"Wolverhampton City Council","http://opendatacommunities.org/id/metropolitan-district-council/wolverhampton","NATWEST BANK","50","MAST 2 - Bilston","6011","Financial Assistance In Exceptional Circ","24/11/2015"
"Wolverhampton City Council","http://opendatacommunities.org/id/metropolitan-district-council/wolverhampton","NATWEST BANK","50","Children's Village Children Centre","6011","Equipment - Purchase","05/11/2015"
"Wolverhampton City Council","http://opendatacommunities.org/id/metropolitan-district-council/wolverhampton","WWW.EMBLTD.CO.UK","50","Street Cleansing Overheads","7399","Training Expenses","30/11/2015"
"Wolverhampton City Council","http://opendatacommunities.org/id/metropolitan-district-council/wolverhampton","OFFICE DEPOT","50.12","Hostels / Outreach","5111","Stationery","11/11/2015"
"Wolverhampton City Council","http://opendatacommunities.org/id/metropolitan-district-council/wolverhampton","NETWORK WEST MIDLANDS","51.5","Graiseley - CIN SWU S17","9399","Client Transport","13/11/2015"
"Wolverhampton City Council","http://opendatacommunities.org/id/metropolitan-district-council/wolverhampton","TFL VISITOR SHOP","51.75","LAC Education Team (LACE)","5965","Equipment - Purchase","06/11/2015"
"Wolverhampton City Council","http://opendatacommunities.org/id/metropolitan-district-council/wolverhampton","OFFICE DEPOT","51.81","Global Budgets","5111","Stationery","09/11/2015"
"Wolverhampton City Council","http://opendatacommunities.org/id/metropolitan-district-council/wolverhampton","BHS 072","52.05","Mayoral Expenses","5311","Clothing / Uniforms","09/11/2015"
"Wolverhampton City Council","http://opendatacommunities.org/id/metropolitan-district-council/wolverhampton","HOME BARGAINS","52.25","Children's Village Nursery","5251","Equipment - Purchase","19/11/2015"
"Wolverhampton City Council","http://opendatacommunities.org/id/metropolitan-district-council/wolverhampton","Amazon UK Marketplace","52.62","Merry Hill House","5942","Provisions (Not for resale)","20/11/2015"
"Wolverhampton City Council","http://opendatacommunities.org/id/metropolitan-district-council/wolverhampton","Virgintrains.co.uk","52.8","Planning","4112","Public Transport","03/11/2015"
"Wolverhampton City Council","http://opendatacommunities.org/id/metropolitan-district-council/wolverhampton","INSPECTLET.COM","53.3","City Direct","5734","Computing - Purchase of Software","16/11/2015"
"Wolverhampton City Council","http://opendatacommunities.org/id/metropolitan-district-council/wolverhampton","ASDA SUPERSTORE","53.54","Swan Bank","5411","Provisions (Not for resale)","17/11/2015"
"Wolverhampton City Council","http://opendatacommunities.org/id/metropolitan-district-council/wolverhampton","Virgintrains.co.uk","53.6","Members Expenses","4112","Public Transport","06/11/2015"
"Wolverhampton City Council","http://opendatacommunities.org/id/metropolitan-district-council/wolverhampton","WWW.VEGWARE.CO.UK","53.99","Bilston Museum","7399","Materials","30/11/2015"
"Wolverhampton City Council","http://opendatacommunities.org/id/metropolitan-district-council/wolverhampton","OFFICE DEPOT","54.95","Macmillan Welfare Rights","5111","Stationery","23/11/2015"
"Wolverhampton City Council","http://opendatacommunities.org/id/metropolitan-district-council/wolverhampton","TESCO STORES 6197","55","Windmill Lane - Respite Home","5411","Provisions (Not for resale)","09/11/2015"
"Wolverhampton City Council","http://opendatacommunities.org/id/metropolitan-district-council/wolverhampton","OFFICE DEPOT","55.2","Payroll/HR","5111","Stationery","05/11/2015"
"Wolverhampton City Council","http://opendatacommunities.org/id/metropolitan-district-council/wolverhampton","Cross Country","55.45","Maintenance & Technical Materials","4112","Public Transport","19/11/2015"
"Wolverhampton City Council","http://opendatacommunities.org/id/metropolitan-district-council/wolverhampton","CARVER/WOLVERHAMPTON/L","55.7","Wholesale Market Facilities Management","5211","Cleaning Supplies and Materials","25/11/2015"
"Wolverhampton City Council","http://opendatacommunities.org/id/metropolitan-district-council/wolverhampton","Amazon UK Marketplace","55.9","School Improvement","5942","Books","06/11/2015"
"Wolverhampton City Council","http://opendatacommunities.org/id/metropolitan-district-council/wolverhampton","G & M HALE (SUNDRIES)","55.95","Creative Studies Delivery Area","5992","Materials for resale","17/11/2015"
"Wolverhampton City Council","http://opendatacommunities.org/id/metropolitan-district-council/wolverhampton","ASDA HOME SHOPPING","56.68","Swan Bank","5411","Provisions (Not for resale)","09/11/2015"
"Wolverhampton City Council","http://opendatacommunities.org/id/metropolitan-district-council/wolverhampton","Amazon UK Marketplace","56.94","School Improvement","5942","Books","06/11/2015"
"Wolverhampton City Council","http://opendatacommunities.org/id/metropolitan-district-council/wolverhampton","OFFICE DEPOT","57.09","Independent Living Service","5111","Stationery","09/11/2015"
"Wolverhampton City Council","http://opendatacommunities.org/id/metropolitan-district-council/wolverhampton","CARESHOP","57.18","Community Enablement","5999","Cleaning Supplies and Materials","03/11/2015"
"Wolverhampton City Council","http://opendatacommunities.org/id/metropolitan-district-council/wolverhampton","LABEEBY","57.45","LAC Admin Team","5651","Services - Supplies & Services to users","10/11/2015"
"Wolverhampton City Council","http://opendatacommunities.org/id/metropolitan-district-council/wolverhampton","JAMES LISTER & SONS LT","58.46","Road Safety","5085","Equipment - Purchase","13/11/2015"
"Wolverhampton City Council","http://opendatacommunities.org/id/metropolitan-district-council/wolverhampton","MARKS & SPENCER","59","Mayoral Expenses","5411","Clothing / Uniforms","09/11/2015"
"Wolverhampton City Council","http://opendatacommunities.org/id/metropolitan-district-council/wolverhampton","Amazon EU","59.94","Parks - South West Area Management","5969","Equipment - Purchase","10/11/2015"
"Wolverhampton City Council","http://opendatacommunities.org/id/metropolitan-district-council/wolverhampton","SAIN COMPTON ROAD","60","Outreach Support","6011","Educ Trips, Holidays, Outings, Activity","27/11/2015"
"Wolverhampton City Council","http://opendatacommunities.org/id/metropolitan-district-council/wolverhampton","WOLVERHAMPTON TROPHY C","60","Education Library Service","5999","Stationery","02/11/2015"
"Wolverhampton City Council","http://opendatacommunities.org/id/metropolitan-district-council/wolverhampton","WP-THE VIRTUAL COL","60","Bilston Museum","8299","Training Expenses","18/11/2015"
"Wolverhampton City Council","http://opendatacommunities.org/id/metropolitan-district-council/wolverhampton","OFFICE DEPOT","60.18","MAST 7 - Berrybrook","5111","Stationery","30/11/2015"
"Wolverhampton City Council","http://opendatacommunities.org/id/metropolitan-district-council/wolverhampton","WWW.VIKING-DIRECT.CO.U","60.36","Creative Studies Delivery Area","5111","Materials","16/11/2015"
"Wolverhampton City Council","http://opendatacommunities.org/id/metropolitan-district-council/wolverhampton","TRAINLINE","60.79","Adoption and Residence Team & Allowances","4112","Public Transport","17/11/2015"
"Wolverhampton City Council","http://opendatacommunities.org/id/metropolitan-district-council/wolverhampton","TRAINLINE","61.3","Bilston 1 - CIN SWU S17","4112","Public Transport","11/11/2015"
"Wolverhampton City Council","http://opendatacommunities.org/id/metropolitan-district-council/wolverhampton","ASDA HOME SHOPPING","61.36","Ernest Bold Court","5411","Provisions (Not for resale)","04/11/2015"
"Wolverhampton City Council","http://opendatacommunities.org/id/metropolitan-district-council/wolverhampton","BEST WESTERN HIGHE","61.67","Fleet Management","7011","Accommodation Costs","04/11/2015"
"Wolverhampton City Council","http://opendatacommunities.org/id/metropolitan-district-council/wolverhampton","ASDA HOME SHOPPING","62.45","Swan Bank","5411","Provisions (Not for resale)","02/11/2015"
"Wolverhampton City Council","http://opendatacommunities.org/id/metropolitan-district-council/wolverhampton","THE POST OFFICE","63","MAST 2 - Bilston","9402","Comms - Postage","13/11/2015"
"Wolverhampton City Council","http://opendatacommunities.org/id/metropolitan-district-council/wolverhampton","YMLP.COM","63","Civic Hall Administration Overhead Acct","7372","Computing - Purchase of Software","17/11/2015"
"Wolverhampton City Council","http://opendatacommunities.org/id/metropolitan-district-council/wolverhampton","ARGOS LTD","63.13","LAC Transitions Team","5310","Client Allowances","19/11/2015"
"Wolverhampton City Council","http://opendatacommunities.org/id/metropolitan-district-council/wolverhampton","Amazon UK Marketplace","64.7","Creative Studies Delivery Area","5942","Equipment - Purchase","05/11/2015"
"Wolverhampton City Council","http://opendatacommunities.org/id/metropolitan-district-council/wolverhampton","H S HOMMERS&SONS (D B)","65","Children's Village Children Centre","5261","Equipment - Purchase","30/11/2015"
"Wolverhampton City Council","http://opendatacommunities.org/id/metropolitan-district-council/wolverhampton","EDMUNDSON ELECTRICAL L","65.65","MAST 3 - Graiseley","5065","Provisions (Not for resale)","11/11/2015"
"Wolverhampton City Council","http://opendatacommunities.org/id/metropolitan-district-council/wolverhampton","OFFICE DEPOT","66.31","Public Health Management Support","5111","Stationery","05/11/2015"
"Wolverhampton City Council","http://opendatacommunities.org/id/metropolitan-district-council/wolverhampton","Amazon UK Marketplace","66.58","Bert Williams Leisure Centre","5942","Equipment - Purchase","18/11/2015"
"Wolverhampton City Council","http://opendatacommunities.org/id/metropolitan-district-council/wolverhampton","TESCO STORES 5194","66.6","Towers Outdoor Education Centre","5411","Provisions (Not for resale)","25/11/2015"
"Wolverhampton City Council","http://opendatacommunities.org/id/metropolitan-district-council/wolverhampton","MAPLIN WOLVERHAMPT WV1","66.66","College of Further Education","5732","Computing - Consumables","13/11/2015"
"Wolverhampton City Council","http://opendatacommunities.org/id/metropolitan-district-council/wolverhampton","NATIONALITY DIRECTORAT","66.67","LAC Transitions Team","9399","Services - Fees and Charges","02/11/2015"
"Wolverhampton City Council","http://opendatacommunities.org/id/metropolitan-district-council/wolverhampton","THE FLOWER STALL","66.67","Mayoral Expenses","5992","Hospitality","27/11/2015"
"Wolverhampton City Council","http://opendatacommunities.org/id/metropolitan-district-council/wolverhampton","PRINTCARRIER.COM","67","Civic Hall Administration Overhead Acct","2741","Publications","18/11/2015"
"Wolverhampton City Council","http://opendatacommunities.org/id/metropolitan-district-council/wolverhampton","TRAVELODGE","67.5","Looked After Team 1","3615","Services - Supplies & Services to users","27/11/2015"
"Wolverhampton City Council","http://opendatacommunities.org/id/metropolitan-district-council/wolverhampton","OFFICE DEPOT","67.77","Parking Enforcement","5111","Stationery","23/11/2015"
"Wolverhampton City Council","http://opendatacommunities.org/id/metropolitan-district-council/wolverhampton","OFFICE DEPOT","67.83","Revenues","5111","Stationery","27/11/2015"
"Wolverhampton City Council","http://opendatacommunities.org/id/metropolitan-district-council/wolverhampton","Amazon UK Marketplace","67.99","Parkfields Centre","5942","Equipment - Purchase","26/11/2015"
"Wolverhampton City Council","http://opendatacommunities.org/id/metropolitan-district-council/wolverhampton","PREMIER INN","68","CIN - Bilston CC2 - Area 2","3811","Accommodation Costs","12/11/2015"
"Wolverhampton City Council","http://opendatacommunities.org/id/metropolitan-district-council/wolverhampton","Cross Country","68.9","Corporate Policy and Equalities","4112","Public Transport","27/11/2015"
"Wolverhampton City Council","http://opendatacommunities.org/id/metropolitan-district-council/wolverhampton","TOOLSTATION LTD","68.92","Education Catering - General Overheads","5251","Equipment - R & M","23/11/2015"
"Wolverhampton City Council","http://opendatacommunities.org/id/metropolitan-district-council/wolverhampton","THE COAL AUTHORITY","69","HRA General","9399","Services - Professional Fees","05/11/2015"
"Wolverhampton City Council","http://opendatacommunities.org/id/metropolitan-district-council/wolverhampton","ASDA SUPERSTORE","69.8","Education And Access","5411","Provisions (Not for resale)","24/11/2015"
"Wolverhampton City Council","http://opendatacommunities.org/id/metropolitan-district-council/wolverhampton","HOLIDAY INNS","69.99","Emergency Duty Team","3501","Services - Supplies & Services to users","09/11/2015"
"Wolverhampton City Council","http://opendatacommunities.org/id/metropolitan-district-council/wolverhampton","PAYPAL  TWINKL LTD","69.99","School Improvement","8699","Subscriptions","27/11/2015"
"Wolverhampton City Council","http://opendatacommunities.org/id/metropolitan-district-council/wolverhampton","LOYD WEDNESFIELD (7733","70","Children's Village Children Centre","6011","Equipment - Purchase","11/11/2015"
"Wolverhampton City Council","http://opendatacommunities.org/id/metropolitan-district-council/wolverhampton","OFFICE DEPOT","70.07","MAST 3 - Graiseley","5111","Stationery","12/11/2015"
"Wolverhampton City Council","http://opendatacommunities.org/id/metropolitan-district-council/wolverhampton","ASDA HOME SHOPPING","70.11","Ernest Bold Court","5411","Provisions (Not for resale)","18/11/2015"
"Wolverhampton City Council","http://opendatacommunities.org/id/metropolitan-district-council/wolverhampton","ASDA HOME SHOPPING","70.4","Ernest Bold Court","5411","Provisions (Not for resale)","16/11/2015"
"Wolverhampton City Council","http://opendatacommunities.org/id/metropolitan-district-council/wolverhampton","TESCO STORES 6197","70.52","Windmill Lane - Respite Home","5411","Provisions (Not for resale)","23/11/2015"
"Wolverhampton City Council","http://opendatacommunities.org/id/metropolitan-district-council/wolverhampton","TRAINLINE","70.89","Legal Services","4112","Public Transport","18/11/2015"
"Wolverhampton City Council","http://opendatacommunities.org/id/metropolitan-district-council/wolverhampton","KIDDICARE","70.94","Childrens with Disabilities Team","5719","Equipment - Purchase","12/11/2015"
"Wolverhampton City Council","http://opendatacommunities.org/id/metropolitan-district-council/wolverhampton","Amazon UK Marketplace","71.94","Technical Support","5942","Computing - Purchase of Hardware","17/11/2015"
"Wolverhampton City Council","http://opendatacommunities.org/id/metropolitan-district-council/wolverhampton","OFFICE DEPOT","72.43","Financial Assessments","5111","Stationery","16/11/2015"
"Wolverhampton City Council","http://opendatacommunities.org/id/metropolitan-district-council/wolverhampton","WICKES BUILDING","72.5","Education And Access","5211","Materials","10/11/2015"
"Wolverhampton City Council","http://opendatacommunities.org/id/metropolitan-district-council/wolverhampton","OFFICE DEPOT","73.46","LAC Transitions Team","5111","Stationery","12/11/2015"
"Wolverhampton City Council","http://opendatacommunities.org/id/metropolitan-district-council/wolverhampton","ASDA SUPERSTORE","73.6","Discretionary Fund","5411","Materials","03/11/2015"
"Wolverhampton City Council","http://opendatacommunities.org/id/metropolitan-district-council/wolverhampton","PAYPAL  ARGOSDIRECT","73.99","School Improvement","5331","Equipment - Purchase","16/11/2015"
"Wolverhampton City Council","http://opendatacommunities.org/id/metropolitan-district-council/wolverhampton","ASDA HOME SHOPPING","74.09","Ernest Bold Court","5411","Provisions (Not for resale)","23/11/2015"
"Wolverhampton City Council","http://opendatacommunities.org/id/metropolitan-district-council/wolverhampton","Amazon EU","74.15","Art Gallery","5969","Equipment - Purchase","09/11/2015"
"Wolverhampton City Council","http://opendatacommunities.org/id/metropolitan-district-council/wolverhampton","WEST COAST TRAINS","74.2","Eastfield 1 - CIN SWU S17","4112","Public Transport","20/11/2015"
"Wolverhampton City Council","http://opendatacommunities.org/id/metropolitan-district-council/wolverhampton","OFFICE DEPOT","74.36","Payroll/HR","5111","Stationery","04/11/2015"
"Wolverhampton City Council","http://opendatacommunities.org/id/metropolitan-district-council/wolverhampton","WWW.VIKING-DIRECT.CO.U","74.97","Legal Services","5111","Stationery","26/11/2015"
"Wolverhampton City Council","http://opendatacommunities.org/id/metropolitan-district-council/wolverhampton","H S HOMMERS&SONS (D B)","75","Bantock House Museum","5261","Equipment - Purchase","25/11/2015"
"Wolverhampton City Council","http://opendatacommunities.org/id/metropolitan-district-council/wolverhampton","WWW.KILILIVE.COM","75","Midland Box Office","7922","Events","30/11/2015"
"Wolverhampton City Council","http://opendatacommunities.org/id/metropolitan-district-council/wolverhampton","ASDA SUPERSTORE","75.32","Mayoral Expenses","5411","Hospitality","09/11/2015"
"Wolverhampton City Council","http://opendatacommunities.org/id/metropolitan-district-council/wolverhampton","BT PAY BY PHONE","75.56","Makers Dozen","4814","Comms - Telephone Call charges","05/11/2015"
"Wolverhampton City Council","http://opendatacommunities.org/id/metropolitan-district-council/wolverhampton","ARGOS RETAIL GROUP","75.59","LAC Admin Team","5310","Equipment - Purchase","30/11/2015"
"Wolverhampton City Council","http://opendatacommunities.org/id/metropolitan-district-council/wolverhampton","TRAINLINE","75.68","Delivery & OCE Development","4112","Public Transport","24/11/2015"
"Wolverhampton City Council","http://opendatacommunities.org/id/metropolitan-district-council/wolverhampton","HOBBY CRAFT LTD","77.58","Children's Village Nursery","5970","Equipment - Purchase","19/11/2015"
"Wolverhampton City Council","http://opendatacommunities.org/id/metropolitan-district-council/wolverhampton","ASDA HOME SHOPPING","77.76","Ernest Bold Court","5411","Provisions (Not for resale)","02/11/2015"
"Wolverhampton City Council","http://opendatacommunities.org/id/metropolitan-district-council/wolverhampton","BLAS AR FWYD CYF","78.02","Towers Outdoor Education Centre","5812","Educ Trips, Holidays, Outings, Activity","12/11/2015"
"Wolverhampton City Council","http://opendatacommunities.org/id/metropolitan-district-council/wolverhampton","TRAINLINE","78.44","Corporate Programs","4112","Public Transport","16/11/2015"
"Wolverhampton City Council","http://opendatacommunities.org/id/metropolitan-district-council/wolverhampton","WEST COAST TRAINS","79.6","Graiseley - CIN SWU S17","4112","Public Transport","19/11/2015"
"Wolverhampton City Council","http://opendatacommunities.org/id/metropolitan-district-council/wolverhampton","Amazon EU","79.73","School Improvement","5969","Equipment - Purchase","09/11/2015"
"Wolverhampton City Council","http://opendatacommunities.org/id/metropolitan-district-council/wolverhampton","ASDA SUPERSTORE","79.97","Swan Bank","5411","Provisions (Not for resale)","30/11/2015"
"Wolverhampton City Council","http://opendatacommunities.org/id/metropolitan-district-council/wolverhampton","OXLEY STATIONERS &","80.32","Northicote Farm","5943","Stationery","06/11/2015"
"Wolverhampton City Council","http://opendatacommunities.org/id/metropolitan-district-council/wolverhampton","Amazon EU","80.51","Independent Living Service","5969","Computing - Purchase of Hardware","09/11/2015"
"Wolverhampton City Council","http://opendatacommunities.org/id/metropolitan-district-council/wolverhampton","HOOTSUITE MEDIA INC.","80.63","Service Wide","7399","Computing - Purchase of Software","23/11/2015"
"Wolverhampton City Council","http://opendatacommunities.org/id/metropolitan-district-council/wolverhampton","ASDA HOME SHOPPING","80.71","Ernest Bold Court","5411","Provisions (Not for resale)","09/11/2015"
"Wolverhampton City Council","http://opendatacommunities.org/id/metropolitan-district-council/wolverhampton","BRITANNIA","81","Mental Health Assessment & Care Mgmt","7011","Services - Supplies & Services to users","17/11/2015"
"Wolverhampton City Council","http://opendatacommunities.org/id/metropolitan-district-council/wolverhampton","BRITANNIA","82","Mental Health Assessment & Care Mgmt","7011","Services - Supplies & Services to users","26/11/2015"
"Wolverhampton City Council","http://opendatacommunities.org/id/metropolitan-district-council/wolverhampton","A PIECE OF CAKE","82.75","College of Further Education","5462","Catering","06/11/2015"
"Wolverhampton City Council","http://opendatacommunities.org/id/metropolitan-district-council/wolverhampton","ROYAL CARPETS","83.33","LAC Transitions Team","5713","Accommodation Costs","12/11/2015"
"Wolverhampton City Council","http://opendatacommunities.org/id/metropolitan-district-council/wolverhampton","Virgintrains.co.uk","84","Fostering Team & Allowances","4112","Public Transport","18/11/2015"
"Wolverhampton City Council","http://opendatacommunities.org/id/metropolitan-district-council/wolverhampton","ASDA HOME SHOPPING","84.41","Ernest Bold Court","5411","Provisions (Not for resale)","30/11/2015"
"Wolverhampton City Council","http://opendatacommunities.org/id/metropolitan-district-council/wolverhampton","WEST COAST TRAINS","84.8","Graiseley - CIN SWU S17","4112","Client Transport","20/11/2015"
"Wolverhampton City Council","http://opendatacommunities.org/id/metropolitan-district-council/wolverhampton","TRAINLINE","84.86","Adoption and Residence Team & Allowances","4112","Public Transport","11/11/2015"
"Wolverhampton City Council","http://opendatacommunities.org/id/metropolitan-district-council/wolverhampton","TRAINLINE","84.86","Adoption and Residence Team & Allowances","4112","Public Transport","05/11/2015"
"Wolverhampton City Council","http://opendatacommunities.org/id/metropolitan-district-council/wolverhampton","WPCHRG.COM","85","City Direct","4816","Computing - Purchase of Software","10/11/2015"
"Wolverhampton City Council","http://opendatacommunities.org/id/metropolitan-district-council/wolverhampton","OFFICE DEPOT","85.8","College of Further Education","5111","Stationery","09/11/2015"
"Wolverhampton City Council","http://opendatacommunities.org/id/metropolitan-district-council/wolverhampton","WEST COAST TRAINS","86","Health Protection & NHS Facing","4112","Public Transport","04/11/2015"
"Wolverhampton City Council","http://opendatacommunities.org/id/metropolitan-district-council/wolverhampton","OFFICE DEPOT","87","Independent Living Service","5111","Stationery","02/11/2015"
"Wolverhampton City Council","http://opendatacommunities.org/id/metropolitan-district-council/wolverhampton","REGISTRARS OFFICE","87","Head of Service - CINCP","8299","Services - Professional Fees","18/11/2015"
"Wolverhampton City Council","http://opendatacommunities.org/id/metropolitan-district-council/wolverhampton","REGISTRARS OFFICE","87","Head of Service - CINCP","8299","Services - Professional Fees","18/11/2015"
"Wolverhampton City Council","http://opendatacommunities.org/id/metropolitan-district-council/wolverhampton","THE BOOK PEOPLE","87.01","Global Budgets","5942","Books","17/11/2015"
"Wolverhampton City Council","http://opendatacommunities.org/id/metropolitan-district-council/wolverhampton","OFFICE DEPOT","87.13","MAST 2 - Bilston","5111","Stationery","13/11/2015"
"Wolverhampton City Council","http://opendatacommunities.org/id/metropolitan-district-council/wolverhampton","NOVOTEL WOLVERHAMPTON","87.5","Maintenance & Technical Materials","7011","Accommodation Costs","20/11/2015"
"Wolverhampton City Council","http://opendatacommunities.org/id/metropolitan-district-council/wolverhampton","ARGOS RETAIL GROUP","87.64","LAC Transitions Team","5310","Client Allowances","25/11/2015"
"Wolverhampton City Council","http://opendatacommunities.org/id/metropolitan-district-council/wolverhampton","ARGOS RETAIL GROUP","88.88","Bilston 1 - CIN SWU S17","5310","Equipment - Purchase","03/11/2015"
"Wolverhampton City Council","http://opendatacommunities.org/id/metropolitan-district-council/wolverhampton","Virgintrains.co.uk","89","Mental Health Assessment & Care Mgmt","4112","Public Transport","03/11/2015"
"Wolverhampton City Council","http://opendatacommunities.org/id/metropolitan-district-council/wolverhampton","ASDA HOME SHOPPING","89.71","Ernest Bold Court","5411","Provisions (Not for resale)","11/11/2015"
"Wolverhampton City Council","http://opendatacommunities.org/id/metropolitan-district-council/wolverhampton","WWW.THEPLASTICSHOP.CO.","90.5","Technician","5072","Equipment - Purchase","19/11/2015"
"Wolverhampton City Council","http://opendatacommunities.org/id/metropolitan-district-council/wolverhampton","ARGOS LTD","90.61","LAC Transitions Team","5310","Equipment - Purchase","20/11/2015"
"Wolverhampton City Council","http://opendatacommunities.org/id/metropolitan-district-council/wolverhampton","TRAINLINE","90.83","Safeguarding Admin Resource","4112","Public Transport","11/11/2015"
"Wolverhampton City Council","http://opendatacommunities.org/id/metropolitan-district-council/wolverhampton","WEST COAST TRAINS","93.7","SMT - Senior Management Team","4112","Public Transport","30/11/2015"
"Wolverhampton City Council","http://opendatacommunities.org/id/metropolitan-district-council/wolverhampton","WEST COAST TRAINS","94","Public Health Management Support","4112","Public Transport","17/11/2015"
"Wolverhampton City Council","http://opendatacommunities.org/id/metropolitan-district-council/wolverhampton","TFM FARM & COUNTRY SUP","95.97","Northicote Farm","5399","Equipment - Purchase","16/11/2015"
"Wolverhampton City Council","http://opendatacommunities.org/id/metropolitan-district-council/wolverhampton","Virgintrains.co.uk","96","Private Sector Housing","4112","Public Transport","20/11/2015"
"Wolverhampton City Council","http://opendatacommunities.org/id/metropolitan-district-council/wolverhampton","BRITISH GAS TRADIN","97.49","Valley Park - CIN SWU S17","5969","Gas","23/11/2015"
"Wolverhampton City Council","http://opendatacommunities.org/id/metropolitan-district-council/wolverhampton","G & M HALE LTD","97.6","Discretionary Fund","5992","Materials","11/11/2015"
"Wolverhampton City Council","http://opendatacommunities.org/id/metropolitan-district-council/wolverhampton","WEST COAST TRAINS","97.8","Whitmore Reans - CIN SWU S17","4112","Public Transport","24/11/2015"
"Wolverhampton City Council","http://opendatacommunities.org/id/metropolitan-district-council/wolverhampton","BT BILL PAYMENT 1","98.29","Civic Halls Non Direct Management A/C","4812","Comms - Telephone Call charges","18/11/2015"
"Wolverhampton City Council","http://opendatacommunities.org/id/metropolitan-district-council/wolverhampton","OFFICE DEPOT","98.3","Children's Village Children Centre","5111","Stationery","20/11/2015"
"Wolverhampton City Council","http://opendatacommunities.org/id/metropolitan-district-council/wolverhampton","Virgintrains.co.uk","98.5","Black Art Movement","4112","Public Transport","19/11/2015"
"Wolverhampton City Council","http://opendatacommunities.org/id/metropolitan-district-council/wolverhampton","SEVERN TRENT WATER","98.54","LAC Transitions Team","4900","Accommodation Costs","13/11/2015"
"Wolverhampton City Council","http://opendatacommunities.org/id/metropolitan-district-council/wolverhampton","WWW.VKF-RENZEL.CO.","98.74","Education And Access","5111","Materials","11/11/2015"
"Wolverhampton City Council","http://opendatacommunities.org/id/metropolitan-district-council/wolverhampton","Amazon UK Marketplace","99","School Improvement","5942","Books","06/11/2015"
"Wolverhampton City Council","http://opendatacommunities.org/id/metropolitan-district-council/wolverhampton","MARKS & SPENCER","99.05","Mayoral Expenses","5411","Clothing / Uniforms","06/11/2015"
"Wolverhampton City Council","http://opendatacommunities.org/id/metropolitan-district-council/wolverhampton","LISTER GASES LTD","99.25","Wholesale Market Facilities Management","5983","Hire of Vehicles","09/11/2015"
"Wolverhampton City Council","http://opendatacommunities.org/id/metropolitan-district-council/wolverhampton","Virgintrains.co.uk","99.5","Mental Health Assessment & Care Mgmt","4112","Public Transport","03/11/2015"
"Wolverhampton City Council","http://opendatacommunities.org/id/metropolitan-district-council/wolverhampton","REDWINGS LODGE","99.92","Avenues - CIN SWU S17","7011","Services - Supplies & Services to users","26/11/2015"
"Wolverhampton City Council","http://opendatacommunities.org/id/metropolitan-district-council/wolverhampton","WWW.LAWNMOWERSDIRECT.","99.99","Cleaning of Buildings - General","5261","Equipment - Purchase","04/11/2015"
"Wolverhampton City Council","http://opendatacommunities.org/id/metropolitan-district-council/wolverhampton","ASDA SUPERSTORE","100","Valley Park - CIN SWU S17","5411","Provisions (Not for resale)","06/11/2015"
"Wolverhampton City Council","http://opendatacommunities.org/id/metropolitan-district-council/wolverhampton","BRITANNIA","100","Mental Health Assessment & Care Mgmt","7011","Services - Supplies & Services to users","16/11/2015"
"Wolverhampton City Council","http://opendatacommunities.org/id/metropolitan-district-council/wolverhampton","HALX WOLVERHAMPTON CIT","100","Democratic Support","6011","Public Transport","17/11/2015"
"Wolverhampton City Council","http://opendatacommunities.org/id/metropolitan-district-council/wolverhampton","SAIN WEDNESFIELD","100","Duke Street Bungalows","6011","Public Transport","04/11/2015"
"Wolverhampton City Council","http://opendatacommunities.org/id/metropolitan-district-council/wolverhampton","SAIN WEDNESFIELD","100","Duke Street Bungalows","6011","Room Hire","04/11/2015"
"Wolverhampton City Council","http://opendatacommunities.org/id/metropolitan-district-council/wolverhampton","THE QUALITY HOTEL WOLV","100","Emergency Duty Team","7011","Financial Assistance In Exceptional Circ","16/11/2015"
"Wolverhampton City Council","http://opendatacommunities.org/id/metropolitan-district-council/wolverhampton","THE SPRINGHILL","100","Parent / Partnership Service","5812","Client Allowances","18/11/2015"
"Wolverhampton City Council","http://opendatacommunities.org/id/metropolitan-district-council/wolverhampton","ARGOS RETAIL GROUP","100.43","Looked After Team 1","5310","Equipment - Purchase","20/11/2015"
"Wolverhampton City Council","http://opendatacommunities.org/id/metropolitan-district-council/wolverhampton","SAINSBURYS (2340)","101.2","Discretionary Fund","5411","Provisions (Not for resale)","24/11/2015"
"Wolverhampton City Council","http://opendatacommunities.org/id/metropolitan-district-council/wolverhampton","G & M HALE LTD","101.4","Creative Studies Delivery Area","5992","Materials for resale","24/11/2015"
"Wolverhampton City Council","http://opendatacommunities.org/id/metropolitan-district-council/wolverhampton","ASDA SUPERSTORE","102.6","Headstart","5411","Provisions (Not for resale)","27/11/2015"
"Wolverhampton City Council","http://opendatacommunities.org/id/metropolitan-district-council/wolverhampton","SUITES AND BEDS","104.17","Alfred Squire - CIN SWU S17","5712","Furniture","16/11/2015"
"Wolverhampton City Council","http://opendatacommunities.org/id/metropolitan-district-council/wolverhampton","RIBA ENTERPRISES LTD","104.78","Landscape","5942","Publications","04/11/2015"
"Wolverhampton City Council","http://opendatacommunities.org/id/metropolitan-district-council/wolverhampton","WEST COAST TRAINS","104.95","Graiseley - CIN SWU S17","4112","Public Transport","05/11/2015"
"Wolverhampton City Council","http://opendatacommunities.org/id/metropolitan-district-council/wolverhampton","ARGOS RETAIL GROUP","104.96","LAC Admin Team","5310","Equipment - Purchase","24/11/2015"
"Wolverhampton City Council","http://opendatacommunities.org/id/metropolitan-district-council/wolverhampton","OFFICE DEPOT","106","Civic Hall Administration Overhead Acct","5111","Stationery","06/11/2015"
"Wolverhampton City Council","http://opendatacommunities.org/id/metropolitan-district-council/wolverhampton","TRAVELPLANET24","106.41","Art Gallery","4722","Public Transport","18/11/2015"
"Wolverhampton City Council","http://opendatacommunities.org/id/metropolitan-district-council/wolverhampton","POST OFFICE SHOP","106.85","Civic Hall Administration Overhead Acct","9402","Comms - Postage","17/11/2015"
"Wolverhampton City Council","http://opendatacommunities.org/id/metropolitan-district-council/wolverhampton","UR PRINT","107","Headstart","2741","Publications","20/11/2015"
"Wolverhampton City Council","http://opendatacommunities.org/id/metropolitan-district-council/wolverhampton","Amazon EU","107.12","Towers Outdoor Education Centre","5969","Equipment - Purchase","03/11/2015"
"Wolverhampton City Council","http://opendatacommunities.org/id/metropolitan-district-council/wolverhampton","PC WORLD","109.99","Customer Services","5732","Equipment - Purchase","26/11/2015"
"Wolverhampton City Council","http://opendatacommunities.org/id/metropolitan-district-council/wolverhampton","BRITANNIA","110","Mental Health Assessment & Care Mgmt","7011","Services - Supplies & Services to users","24/11/2015"
"Wolverhampton City Council","http://opendatacommunities.org/id/metropolitan-district-council/wolverhampton","SAINSBURYS 0722","110.25","SEN Early Years Team","5411","Equipment - Purchase","04/11/2015"
"Wolverhampton City Council","http://opendatacommunities.org/id/metropolitan-district-council/wolverhampton","TESCO STORE 3414","110.69","Mayoral Expenses","5411","Hospitality","02/11/2015"
"Wolverhampton City Council","http://opendatacommunities.org/id/metropolitan-district-council/wolverhampton","OFFICE DEPOT","111.37","Youth Service - General","5111","Equipment - Purchase","04/11/2015"
"Wolverhampton City Council","http://opendatacommunities.org/id/metropolitan-district-council/wolverhampton","Amazon UK Marketplace","111.96","Learning Technologies","5942","Computing - Purchase of Hardware","06/11/2015"
"Wolverhampton City Council","http://opendatacommunities.org/id/metropolitan-district-council/wolverhampton","POST OFFICE COUNTER","112.49","MAST 7 - Berrybrook","9402","Comms - Postage","04/11/2015"
"Wolverhampton City Council","http://opendatacommunities.org/id/metropolitan-district-council/wolverhampton","TFM FARM & COUNTRY SUP","113.65","Northicote Farm","5399","Materials","05/11/2015"
"Wolverhampton City Council","http://opendatacommunities.org/id/metropolitan-district-council/wolverhampton","BRITANNIA","114.17","Mental Health Assessment & Care Mgmt","7011","Services - Supplies & Services to users","20/11/2015"
"Wolverhampton City Council","http://opendatacommunities.org/id/metropolitan-district-council/wolverhampton","HARLECH FOODSERVICE LT","115.72","Towers Outdoor Education Centre","5422","Catering","12/11/2015"
"Wolverhampton City Council","http://opendatacommunities.org/id/metropolitan-district-council/wolverhampton","SUITES AND BEDS","115.83","LAC Transitions Team","5712","Equipment - Purchase","20/11/2015"
"Wolverhampton City Council","http://opendatacommunities.org/id/metropolitan-district-council/wolverhampton","REGISTRARS OFFICE","116","Head of Service - CINCP","8299","Services - Professional Fees","18/11/2015"
"Wolverhampton City Council","http://opendatacommunities.org/id/metropolitan-district-council/wolverhampton","TRAINLINE","116.08","Adoption and Residence Team & Allowances","4112","Public Transport","16/11/2015"
"Wolverhampton City Council","http://opendatacommunities.org/id/metropolitan-district-council/wolverhampton","HUGHES","116.66","LAC Transitions Team","5732","Accommodation Costs","12/11/2015"
"Wolverhampton City Council","http://opendatacommunities.org/id/metropolitan-district-council/wolverhampton","SAGE PUBLICATIONS UK","119.95","Newly Qualified Social Workers","5994","Books","02/11/2015"
"Wolverhampton City Council","http://opendatacommunities.org/id/metropolitan-district-council/wolverhampton","ASDA SUPERSTORE","121.36","Mayoral Expenses","5411","Hospitality","02/11/2015"
"Wolverhampton City Council","http://opendatacommunities.org/id/metropolitan-district-council/wolverhampton","G & M HALE LTD","121.4","Discretionary Fund","5992","Materials","25/11/2015"
"Wolverhampton City Council","http://opendatacommunities.org/id/metropolitan-district-council/wolverhampton","Virgintrains.co.uk","121.5","HRA General","4112","Public Transport","17/11/2015"
"Wolverhampton City Council","http://opendatacommunities.org/id/metropolitan-district-council/wolverhampton","Flybe2674 2674067967953","122.49","LAC Admin Team","4511","Public Transport","17/11/2015"
"Wolverhampton City Council","http://opendatacommunities.org/id/metropolitan-district-council/wolverhampton","FUEL CARD SERVICES LTD","122.67","Towers Outdoor Education Centre","7399","Petrol","10/11/2015"
"Wolverhampton City Council","http://opendatacommunities.org/id/metropolitan-district-council/wolverhampton","TFM FARM & COUNTRY SUP","123.77","Northicote Farm","5399","Materials","05/11/2015"
"Wolverhampton City Council","http://opendatacommunities.org/id/metropolitan-district-council/wolverhampton","WWW.CATER4YOU.CO.UK","123.79","Bilston Museum","5811","Materials","30/11/2015"
"Wolverhampton City Council","http://opendatacommunities.org/id/metropolitan-district-council/wolverhampton","WWW.PCWB.COM","124.98","Headstart","5734","Computing - Purchase of Software","27/11/2015"
"Wolverhampton City Council","http://opendatacommunities.org/id/metropolitan-district-council/wolverhampton","CW TECHNOLOGIES (UK) L","127.62","Parks - East Area Management","5085","Equipment - Purchase","06/11/2015"
"Wolverhampton City Council","http://opendatacommunities.org/id/metropolitan-district-council/wolverhampton","G & M HALE LTD","127.85","Creative Studies Delivery Area","5992","Materials for resale","09/11/2015"
"Wolverhampton City Council","http://opendatacommunities.org/id/metropolitan-district-council/wolverhampton","SQUARESPACE INC.","128.02","Learning Technologies","7372","Computing - Purchase of Software","04/11/2015"
"Wolverhampton City Council","http://opendatacommunities.org/id/metropolitan-district-council/wolverhampton","Virgintrains.co.uk","130","Private Sector Housing","4112","Public Transport","17/11/2015"
"Wolverhampton City Council","http://opendatacommunities.org/id/metropolitan-district-council/wolverhampton","LONDON MIDLAND INT","132.4","Looked After Team 1","4112","Public Transport","27/11/2015"
"Wolverhampton City Council","http://opendatacommunities.org/id/metropolitan-district-council/wolverhampton","Virgintrains.co.uk","132.5","Scrutiny & Transparency","4112","Public Transport","13/11/2015"
"Wolverhampton City Council","http://opendatacommunities.org/id/metropolitan-district-council/wolverhampton","ASDA SUPERSTORE","132.9","Youth Offending Team","5411","Provisions (Not for resale)","06/11/2015"
"Wolverhampton City Council","http://opendatacommunities.org/id/metropolitan-district-council/wolverhampton","ULRICH ATTACHMENTS LTD","134.55","Fleet Management","8911","Equipment - Purchase","20/11/2015"
"Wolverhampton City Council","http://opendatacommunities.org/id/metropolitan-district-council/wolverhampton","JAMES LISTER & SON","135","Civic Halls Non Direct Management A/C","8911","Equipment - R & M","11/11/2015"
"Wolverhampton City Council","http://opendatacommunities.org/id/metropolitan-district-council/wolverhampton","OFFICE DEPOT","135.8","MAST 4 - Warstones","5111","Stationery","06/11/2015"
"Wolverhampton City Council","http://opendatacommunities.org/id/metropolitan-district-council/wolverhampton","ROYAL CARPETS","137.5","LAC Transitions Team","5713","Equipment - Purchase","30/11/2015"
"Wolverhampton City Council","http://opendatacommunities.org/id/metropolitan-district-council/wolverhampton","FLYBE.COM 2674067826051","137.59","Leonardo Da Vinci Project","4511","Public Transport","04/11/2015"
"Wolverhampton City Council","http://opendatacommunities.org/id/metropolitan-district-council/wolverhampton","PAYPRO-CHARGE.COM-","138","Museum Resilience Project - ACE","7372","Computing - Purchase of Software","17/11/2015"
"Wolverhampton City Council","http://opendatacommunities.org/id/metropolitan-district-council/wolverhampton","THE COAL AUTHORITY","138","HRA General","9399","Services - Professional Fees","09/11/2015"
"Wolverhampton City Council","http://opendatacommunities.org/id/metropolitan-district-council/wolverhampton","THE COAL AUTHORITY","138","HRA General","9399","Services - Professional Fees","09/11/2015"
"Wolverhampton City Council","http://opendatacommunities.org/id/metropolitan-district-council/wolverhampton","THE CONSORTIUM/WMS","141.44","Education And Access","5968","Materials","20/11/2015"
"Wolverhampton City Council","http://opendatacommunities.org/id/metropolitan-district-council/wolverhampton","WIDDOWSONS","142.5","Cafe","5947","Equipment - Purchase","13/11/2015"
"Wolverhampton City Council","http://opendatacommunities.org/id/metropolitan-district-council/wolverhampton","TVLICENSING.CO.UK","145.5","LAC Admin Team","7392","Services - Consultants","13/11/2015"
"Wolverhampton City Council","http://opendatacommunities.org/id/metropolitan-district-council/wolverhampton","TVLICENSING.CO.UK","145.5","LAC Transitions Team","7392","Services - Consultants","04/11/2015"
"Wolverhampton City Council","http://opendatacommunities.org/id/metropolitan-district-council/wolverhampton","TESCO STORES 5194","145.87","Towers Outdoor Education Centre","5411","Provisions (Not for resale)","20/11/2015"
"Wolverhampton City Council","http://opendatacommunities.org/id/metropolitan-district-council/wolverhampton","LA GAFFE","148.33","DCMS Wolfson - Contemp Gallery Refurb","5812","Accommodation Costs","23/11/2015"
"Wolverhampton City Council","http://opendatacommunities.org/id/metropolitan-district-council/wolverhampton","CENTRAL TAXIS LTD","149.1","Looked After Team 2","4121","Client Transport","10/11/2015"
"Wolverhampton City Council","http://opendatacommunities.org/id/metropolitan-district-council/wolverhampton","E01577600000000","150","MAST - Central Team","6011","Catering","27/11/2015"
"Wolverhampton City Council","http://opendatacommunities.org/id/metropolitan-district-council/wolverhampton","PO LOW HILL 1592","150","46a, Second Avenue, Low Hill","6011","Financial Assistance In Exceptional Circ","30/11/2015"
"Wolverhampton City Council","http://opendatacommunities.org/id/metropolitan-district-council/wolverhampton","YELLOW SHIELD LTD","150","Central Baths","7399","Equipment - Purchase","17/11/2015"
"Wolverhampton City Council","http://opendatacommunities.org/id/metropolitan-district-council/wolverhampton","Virgintrains.co.uk","153","Corporate Policy and Equalities","4112","Public Transport","24/11/2015"
"Wolverhampton City Council","http://opendatacommunities.org/id/metropolitan-district-council/wolverhampton","OFFICE DEPOT","153.45","LAC Admin Team","5111","Stationery","24/11/2015"
"Wolverhampton City Council","http://opendatacommunities.org/id/metropolitan-district-council/wolverhampton","ALLISTER MALCOLM GLASS","154.17","Mayoral Expenses","5950","Hospitality","30/11/2015"
"Wolverhampton City Council","http://opendatacommunities.org/id/metropolitan-district-council/wolverhampton","OFFICE DEPOT","154.2","CIN - Alfred Squire Square MAST - Area 8","5111","Stationery","02/11/2015"
"Wolverhampton City Council","http://opendatacommunities.org/id/metropolitan-district-council/wolverhampton","Virgintrains.co.uk","154.5","Members Expenses","4112","Public Transport","09/11/2015"
"Wolverhampton City Council","http://opendatacommunities.org/id/metropolitan-district-council/wolverhampton","OFFICE DEPOT","155.23","Archives","5111","Stationery","16/11/2015"
"Wolverhampton City Council","http://opendatacommunities.org/id/metropolitan-district-council/wolverhampton","ASDA SUPERSTORE","155.93","Upper Pendeford Farm Childrens Home","5411","Provisions (Not for resale)","10/11/2015"
"Wolverhampton City Council","http://opendatacommunities.org/id/metropolitan-district-council/wolverhampton","G & M HALE LTD","156.9","College of Further Education","5992","Equipment - Purchase","17/11/2015"
"Wolverhampton City Council","http://opendatacommunities.org/id/metropolitan-district-council/wolverhampton","IBIS POZNAN","162.92","Economic Development","7011","Accommodation Costs","02/11/2015"
"Wolverhampton City Council","http://opendatacommunities.org/id/metropolitan-district-council/wolverhampton","WOLVERHAMPTON CARP","165","Whitmore Reans - CIN SWU S17","5713","Equipment - Purchase","24/11/2015"
"Wolverhampton City Council","http://opendatacommunities.org/id/metropolitan-district-council/wolverhampton","THE COAL AUTHORITY","165.6","Legal Services","9399","Services - Fees and Charges","03/11/2015"
"Wolverhampton City Council","http://opendatacommunities.org/id/metropolitan-district-council/wolverhampton","TFM FARM & COUNTRY SUP","165.99","Northicote Farm","5399","Equipment - Purchase","25/11/2015"
"Wolverhampton City Council","http://opendatacommunities.org/id/metropolitan-district-council/wolverhampton","COTSWOLD OUTDOOR-MAIL","166.67","Towers Outdoor Education Centre","5691","Equipment - Purchase","10/11/2015"
"Wolverhampton City Council","http://opendatacommunities.org/id/metropolitan-district-council/wolverhampton","EE & T-MOBILE","168.16","Civic Halls Non Direct Management A/C","4814","Comms - Telephone Call charges","05/11/2015"
"Wolverhampton City Council","http://opendatacommunities.org/id/metropolitan-district-council/wolverhampton","BRITANNIA","170","Mental Health Assessment & Care Mgmt","7011","Services - Supplies & Services to users","30/11/2015"
"Wolverhampton City Council","http://opendatacommunities.org/id/metropolitan-district-council/wolverhampton","IKEA","170.42","Bilston Museum","5719","Equipment - Purchase","16/11/2015"
"Wolverhampton City Council","http://opendatacommunities.org/id/metropolitan-district-council/wolverhampton","G & M HALE (PLANTS) LT","171.15","College of Further Education","5193","Materials","03/11/2015"
"Wolverhampton City Council","http://opendatacommunities.org/id/metropolitan-district-council/wolverhampton","TRAINLINE","171.36","Childrens Centres & Early Years","4112","Public Transport","10/11/2015"
"Wolverhampton City Council","http://opendatacommunities.org/id/metropolitan-district-council/wolverhampton","FLYBE.COM 2674067901475","171.66","LAC Transitions Team","4511","Public Transport","11/11/2015"
"Wolverhampton City Council","http://opendatacommunities.org/id/metropolitan-district-council/wolverhampton","PEARSON ED LTD","171.75","SEN Early Years Team","8299","Equipment - Purchase","30/11/2015"
"Wolverhampton City Council","http://opendatacommunities.org/id/metropolitan-district-council/wolverhampton","WOLVES CC","173.69","Whitmore Reans - CIN SWU S17","9399","Services - Fees and Charges","18/11/2015"
"Wolverhampton City Council","http://opendatacommunities.org/id/metropolitan-district-council/wolverhampton","STAFFORD INDUSTRIAL SU","174.72","Play General","5085","Equipment - Purchase","27/11/2015"
"Wolverhampton City Council","http://opendatacommunities.org/id/metropolitan-district-council/wolverhampton","Virgintrains.co.uk","177","Members Expenses","4112","Public Transport","24/11/2015"
"Wolverhampton City Council","http://opendatacommunities.org/id/metropolitan-district-council/wolverhampton","Virgintrains.co.uk","177","Head of Service - LAC","4112","Public Transport","19/11/2015"
"Wolverhampton City Council","http://opendatacommunities.org/id/metropolitan-district-council/wolverhampton","Virgintrains.co.uk","177","Corporate Policy and Equalities","4112","Public Transport","11/11/2015"
"Wolverhampton City Council","http://opendatacommunities.org/id/metropolitan-district-council/wolverhampton","OFFICE DEPOT","179.86","Headstart","5111","Stationery","03/11/2015"
"Wolverhampton City Council","http://opendatacommunities.org/id/metropolitan-district-council/wolverhampton","TESCO STORES 5194","179.91","Towers Outdoor Education Centre","5411","Provisions (Not for resale)","11/11/2015"
"Wolverhampton City Council","http://opendatacommunities.org/id/metropolitan-district-council/wolverhampton","Virgintrains.co.uk","180","Fostering Team & Allowances","4112","Public Transport","26/11/2015"
"Wolverhampton City Council","http://opendatacommunities.org/id/metropolitan-district-council/wolverhampton","WATERSTONES","180","Education Library Service","5942","Stationery","02/11/2015"
"Wolverhampton City Council","http://opendatacommunities.org/id/metropolitan-district-council/wolverhampton","FACEBOOK QJ6ET72B92","182.25","Communications & Marketing - General","7311","Marketing \ Non-staff advertising","02/11/2015"
"Wolverhampton City Council","http://opendatacommunities.org/id/metropolitan-district-council/wolverhampton","PAYATRADER","185","Bilston 1 - CIN SWU S17","7399","Hire of Vehicles","30/11/2015"
"Wolverhampton City Council","http://opendatacommunities.org/id/metropolitan-district-council/wolverhampton","EASYLINK UK","187.25","Telecare","5969","Equipment - Purchase","10/11/2015"
"Wolverhampton City Council","http://opendatacommunities.org/id/metropolitan-district-council/wolverhampton","CURRYS ONLINE","187.49","LAC Transitions Team","5732","Accommodation Costs","26/11/2015"
"Wolverhampton City Council","http://opendatacommunities.org/id/metropolitan-district-council/wolverhampton","Virgintrains.co.uk","190.6","Licensing - H.Carriage/Pr.Hire Vehicles","4112","Public Transport","12/11/2015"
"Wolverhampton City Council","http://opendatacommunities.org/id/metropolitan-district-council/wolverhampton","Virgintrains.co.uk","190.6","Service Director Disab & Mental Health","4112","Public Transport","11/11/2015"
"Wolverhampton City Council","http://opendatacommunities.org/id/metropolitan-district-council/wolverhampton","Virgintrains.co.uk","193","Fostering Team & Allowances","4112","Public Transport","27/11/2015"
"Wolverhampton City Council","http://opendatacommunities.org/id/metropolitan-district-council/wolverhampton","JAMES LISTER & SON","193.8","Employment Service - Old Tree Nursery","8911","Services - Professional Fees","25/11/2015"
"Wolverhampton City Council","http://opendatacommunities.org/id/metropolitan-district-council/wolverhampton","TRAINLINE","194.31","Customer Services","4112","Public Transport","27/11/2015"
"Wolverhampton City Council","http://opendatacommunities.org/id/metropolitan-district-council/wolverhampton","EMAP LTD","195","Learning Technologies","2741","Publications","06/11/2015"
"Wolverhampton City Council","http://opendatacommunities.org/id/metropolitan-district-council/wolverhampton","Virgintrains.co.uk","195","Education Catering - General Overheads","4112","Public Transport","09/11/2015"
"Wolverhampton City Council","http://opendatacommunities.org/id/metropolitan-district-council/wolverhampton","TRAINLINE","195.94","Audit Services","4112","Public Transport","16/11/2015"
"Wolverhampton City Council","http://opendatacommunities.org/id/metropolitan-district-council/wolverhampton","TRAINLINE","195.94","Audit Services","4112","Public Transport","16/11/2015"
"Wolverhampton City Council","http://opendatacommunities.org/id/metropolitan-district-council/wolverhampton","ARGOS RETAIL GROUP","198.78","LAC Transitions Team","5310","Equipment - Purchase","25/11/2015"
"Wolverhampton City Council","http://opendatacommunities.org/id/metropolitan-district-council/wolverhampton","JORDAN PUBLISHING","199","Legal Services","5942","Books","12/11/2015"
"Wolverhampton City Council","http://opendatacommunities.org/id/metropolitan-district-council/wolverhampton","ARGOS RETAIL GROUP","199.99","LAC Admin Team","5310","Equipment - Purchase","16/11/2015"
"Wolverhampton City Council","http://opendatacommunities.org/id/metropolitan-district-council/wolverhampton","ASDA SUPERSTORE","200","Valley Park - CIN SWU S17","5411","Provisions (Not for resale)","18/11/2015"
"Wolverhampton City Council","http://opendatacommunities.org/id/metropolitan-district-council/wolverhampton","E.ON ENERGY SOLUTIONS","200","Whitmore Reans - CIN SWU S17","4900","Electricity","25/11/2015"
"Wolverhampton City Council","http://opendatacommunities.org/id/metropolitan-district-council/wolverhampton","WWW.BAKERROSS.CO.UK","200.86","Education And Access","5970","Materials","20/11/2015"
"Wolverhampton City Council","http://opendatacommunities.org/id/metropolitan-district-council/wolverhampton","ASDA HOME SHOPPING","201.26","Upper Pendeford Farm Childrens Home","5411","Provisions (Not for resale)","17/11/2015"
"Wolverhampton City Council","http://opendatacommunities.org/id/metropolitan-district-council/wolverhampton","WWW.THEGIFTCARDCENTRE.","201.95","Parent / Partnership Service","5947","Subsistence","19/11/2015"
"Wolverhampton City Council","http://opendatacommunities.org/id/metropolitan-district-council/wolverhampton","LOVE2SHOP.CO.UK","203.5","Information & Intelligence","8641","Provisions (Not for resale)","04/11/2015"
"Wolverhampton City Council","http://opendatacommunities.org/id/metropolitan-district-council/wolverhampton","WEST COAST TRAINS","204","Information & Intelligence","4112","Public Transport","17/11/2015"
"Wolverhampton City Council","http://opendatacommunities.org/id/metropolitan-district-council/wolverhampton","JUICY FRUITS","205.26","Children's Village Nursery","5411","School Meals","26/11/2015"
"Wolverhampton City Council","http://opendatacommunities.org/id/metropolitan-district-council/wolverhampton","TRAINLINE","206.55","Customer Services","4112","Public Transport","16/11/2015"
"Wolverhampton City Council","http://opendatacommunities.org/id/metropolitan-district-council/wolverhampton","SALFORD PROFESSIONAL D","208","Public Health - Healthier Places Team","8299","Training Expenses","26/11/2015"
"Wolverhampton City Council","http://opendatacommunities.org/id/metropolitan-district-council/wolverhampton","TRAINLINE","208.59","Bilston 1 - CIN SWU S17","4112","Public Transport","25/11/2015"
"Wolverhampton City Council","http://opendatacommunities.org/id/metropolitan-district-council/wolverhampton","ARGOS RETAIL GROUP","208.94","LAC Admin Team","5310","Equipment - Purchase","24/11/2015"
"Wolverhampton City Council","http://opendatacommunities.org/id/metropolitan-district-council/wolverhampton","WWW.DATA.ORG.UK","210","Catalyst Arts","8699","Training Expenses","12/11/2015"
"Wolverhampton City Council","http://opendatacommunities.org/id/metropolitan-district-council/wolverhampton","BROADWAITH","211.78","Towers Outdoor Education Centre","5651","Equipment - Purchase","06/11/2015"
"Wolverhampton City Council","http://opendatacommunities.org/id/metropolitan-district-council/wolverhampton","EB NATIONAL LEAFEA AU","212.3","SMT - Senior Management Team","7399","Conference Expenses","16/11/2015"
"Wolverhampton City Council","http://opendatacommunities.org/id/metropolitan-district-council/wolverhampton","TRAINLINE","215.73","LAC Transitions Team","4112","Subsistence","20/11/2015"
"Wolverhampton City Council","http://opendatacommunities.org/id/metropolitan-district-council/wolverhampton","ARGOS LTD","215.82","College of Further Education","5310","Computing - Consumables","30/11/2015"
"Wolverhampton City Council","http://opendatacommunities.org/id/metropolitan-district-council/wolverhampton","JUICY FRUITS","215.93","Children's Village Nursery","5411","School Meals","05/11/2015"
"Wolverhampton City Council","http://opendatacommunities.org/id/metropolitan-district-council/wolverhampton","WEST COAST TRAINS","218.35","Graiseley - CIN SWU S17","4112","Public Transport","19/11/2015"
"Wolverhampton City Council","http://opendatacommunities.org/id/metropolitan-district-council/wolverhampton","ASDA HOME SHOPPING","224.27","Upper Pendeford Farm Childrens Home","5411","Provisions (Not for resale)","24/11/2015"
"Wolverhampton City Council","http://opendatacommunities.org/id/metropolitan-district-council/wolverhampton","PREMIER INN","225.5","Workforce Development","3811","Accommodation Costs","30/11/2015"
"Wolverhampton City Council","http://opendatacommunities.org/id/metropolitan-district-council/wolverhampton","ARGOS RETAIL GROUP","227.17","Bilston 1 - CIN SWU S17","5310","Equipment - Purchase","03/11/2015"
"Wolverhampton City Council","http://opendatacommunities.org/id/metropolitan-district-council/wolverhampton","SUITES AND BEDS","228.33","LAC Transitions Team","5712","Equipment - Purchase","20/11/2015"
"Wolverhampton City Council","http://opendatacommunities.org/id/metropolitan-district-council/wolverhampton","E01577600000000","229.17","MAST - Central Team","6011","Financial Assistance In Exceptional Circ","25/11/2015"
"Wolverhampton City Council","http://opendatacommunities.org/id/metropolitan-district-council/wolverhampton","TESCO STORES 5194","232.68","Towers Outdoor Education Centre","5411","Provisions (Not for resale)","04/11/2015"
"Wolverhampton City Council","http://opendatacommunities.org/id/metropolitan-district-council/wolverhampton","PREMIER INN","237","Headstart","3811","Services - Supplies & Services to users","03/11/2015"
"Wolverhampton City Council","http://opendatacommunities.org/id/metropolitan-district-council/wolverhampton","ARGOS RETAIL GROUP","239.98","Bilston 2 - CIN SWU S17","5310","Furniture","20/11/2015"
"Wolverhampton City Council","http://opendatacommunities.org/id/metropolitan-district-council/wolverhampton","NETWORK WEST MIDLANDS","240","Graiseley - CIN SWU S17","9399","Services - Fees and Charges","06/11/2015"
"Wolverhampton City Council","http://opendatacommunities.org/id/metropolitan-district-council/wolverhampton","FOUR PILLARS COTSWOLD","248","Adoption and Residence Team & Allowances","7011","Accommodation Costs","13/11/2015"
"Wolverhampton City Council","http://opendatacommunities.org/id/metropolitan-district-council/wolverhampton","WWW.MARTIAL-MATS.CO.UK","248.95","Aldersley Leisure Village","5941","Equipment - Purchase","04/11/2015"
"Wolverhampton City Council","http://opendatacommunities.org/id/metropolitan-district-council/wolverhampton","EB ENGAGING VIDEO-CRE","249","AES Staff Development","7399","Equipment - Purchase","06/11/2015"
"Wolverhampton City Council","http://opendatacommunities.org/id/metropolitan-district-council/wolverhampton","Amazon UK Marketplace","249.17","Register Office","5942","Books","17/11/2015"
"Wolverhampton City Council","http://opendatacommunities.org/id/metropolitan-district-council/wolverhampton","ASDA SUPERSTORE","250","MAST 5 - Valley Park","5411","Provisions (Not for resale)","16/11/2015"
"Wolverhampton City Council","http://opendatacommunities.org/id/metropolitan-district-council/wolverhampton","NATWEST BANK","250","Valley Park - CIN SWU S17","6011","Financial Assistance In Exceptional Circ","18/11/2015"
"Wolverhampton City Council","http://opendatacommunities.org/id/metropolitan-district-council/wolverhampton","NATWEST BANK","250","Children's Village Children Centre","6011","Equipment - Purchase","11/11/2015"
"Wolverhampton City Council","http://opendatacommunities.org/id/metropolitan-district-council/wolverhampton","NATWEST BANK","250","Valley Park - CIN SWU S17","6011","Financial Assistance In Exceptional Circ","06/11/2015"
"Wolverhampton City Council","http://opendatacommunities.org/id/metropolitan-district-council/wolverhampton","NOTEMACHINE","250","Priory Green - CIN SWU S17","6011","Financial Assistance In Exceptional Circ","05/11/2015"
"Wolverhampton City Council","http://opendatacommunities.org/id/metropolitan-district-council/wolverhampton","NOTEMACHINE","250","Children's Village Children Centre","6011","Equipment - Purchase","05/11/2015"
"Wolverhampton City Council","http://opendatacommunities.org/id/metropolitan-district-council/wolverhampton","SAIN ST MARKS","250","Childrens with Disabilities Team","6011","Financial Assistance In Exceptional Circ","25/11/2015"
"Wolverhampton City Council","http://opendatacommunities.org/id/metropolitan-district-council/wolverhampton","SAIN ST MARKS","250","Childrens with Disabilities Team","6011","Financial Assistance In Exceptional Circ","12/11/2015"
"Wolverhampton City Council","http://opendatacommunities.org/id/metropolitan-district-council/wolverhampton","UNITED CARPETS & BEDS","250","Valley Park - CIN SWU S17","5713","Financial Assistance In Exceptional Circ","23/11/2015"
"Wolverhampton City Council","http://opendatacommunities.org/id/metropolitan-district-council/wolverhampton","POST OFFICE COUNTER","255.25","Fostering Team & Allowances","9402","Comms - Postage","26/11/2015"
"Wolverhampton City Council","http://opendatacommunities.org/id/metropolitan-district-council/wolverhampton","KWINTET UK LIMITED","257.88","Service Wide","5631","Clothing / Uniforms","10/11/2015"
"Wolverhampton City Council","http://opendatacommunities.org/id/metropolitan-district-council/wolverhampton","PAYPAL  LANDSCAPEIN","258.33","Landscape","8398","Services - Professional Fees","25/11/2015"
"Wolverhampton City Council","http://opendatacommunities.org/id/metropolitan-district-council/wolverhampton","POST OFFICE COUNTER","258.5","Adoption and Residence Team & Allowances","9402","Comms - Postage","12/11/2015"
"Wolverhampton City Council","http://opendatacommunities.org/id/metropolitan-district-council/wolverhampton","TRAINLINE","258.57","Looked After Team 1","4112","Public Transport","03/11/2015"
"Wolverhampton City Council","http://opendatacommunities.org/id/metropolitan-district-council/wolverhampton","Amazon UK Marketplace","259","Revenues","5942","Equipment - Purchase","03/11/2015"
"Wolverhampton City Council","http://opendatacommunities.org/id/metropolitan-district-council/wolverhampton","ASDA SUPERSTORE","261.42","LAC Transitions Team","5411","Client Allowances","17/11/2015"
"Wolverhampton City Council","http://opendatacommunities.org/id/metropolitan-district-council/wolverhampton","2CO Dovestone","262.91","Technical Support","5734","Computing - Purchase of Software","09/11/2015"
"Wolverhampton City Council","http://opendatacommunities.org/id/metropolitan-district-council/wolverhampton","IKEA","265.42","Education Catering - General Overheads","5719","Equipment - Purchase","13/11/2015"
"Wolverhampton City Council","http://opendatacommunities.org/id/metropolitan-district-council/wolverhampton","PURE360","268.8","Civic Halls Non Direct Management A/C","7372","Marketing \ Non-staff advertising","13/11/2015"
"Wolverhampton City Council","http://opendatacommunities.org/id/metropolitan-district-council/wolverhampton","PAST PRESENT AND FUTUR","270.83","LAC Transitions Team","5732","Equipment - Purchase","17/11/2015"
"Wolverhampton City Council","http://opendatacommunities.org/id/metropolitan-district-council/wolverhampton","CARE SHOP","282.36","Specialist Support Service - North","5999","Cleaning Supplies and Materials","16/11/2015"
"Wolverhampton City Council","http://opendatacommunities.org/id/metropolitan-district-council/wolverhampton","TICKET OFFICE","288","Learning Technologies","7997","Educ Trips, Holidays, Outings, Activity","18/11/2015"
"Wolverhampton City Council","http://opendatacommunities.org/id/metropolitan-district-council/wolverhampton","BONINGALE NURSERIE","290","Civic Centre","5261","Equipment - Purchase","25/11/2015"
"Wolverhampton City Council","http://opendatacommunities.org/id/metropolitan-district-council/wolverhampton","WWW.SEVERNTRENTSEARCHE","290","HRA General","4900","Services - Professional Fees","09/11/2015"
"Wolverhampton City Council","http://opendatacommunities.org/id/metropolitan-district-council/wolverhampton","WWW.SEVERNTRENTSEARCHE","290","HRA General","4900","Services - Professional Fees","09/11/2015"
"Wolverhampton City Council","http://opendatacommunities.org/id/metropolitan-district-council/wolverhampton","ASDA HOME SHOPPING","295.88","Upper Pendeford Farm Childrens Home","5411","Provisions (Not for resale)","10/11/2015"
"Wolverhampton City Council","http://opendatacommunities.org/id/metropolitan-district-council/wolverhampton","WWW.MARTIAL-MATS.CO.UK","298.74","Bert Williams Leisure Centre","5941","Equipment - Purchase","02/11/2015"
"Wolverhampton City Council","http://opendatacommunities.org/id/metropolitan-district-council/wolverhampton","WWW.LIFESAVERSDIRECT","304.58","Central Baths","5965","Equipment - Purchase","09/11/2015"
"Wolverhampton City Council","http://opendatacommunities.org/id/metropolitan-district-council/wolverhampton","ASPLI SAFETY EQUIP","309.6","Health Protection & NHS Facing","5211","Materials","26/11/2015"
"Wolverhampton City Council","http://opendatacommunities.org/id/metropolitan-district-council/wolverhampton","CIVIL JUSTICE CENT","310","Legal Services","9222","Services - Professional Fees","25/11/2015"
"Wolverhampton City Council","http://opendatacommunities.org/id/metropolitan-district-council/wolverhampton","lastminute com Marlin","320","Corporate Policy and Equalities","4722","Public Transport","11/11/2015"
"Wolverhampton City Council","http://opendatacommunities.org/id/metropolitan-district-council/wolverhampton","SAIN ST MARKS","320","Learning Disabilities Assmt and Care Mgt","6011","Financial Assistance In Exceptional Circ","19/11/2015"
"Wolverhampton City Council","http://opendatacommunities.org/id/metropolitan-district-council/wolverhampton","ARGOS RETAIL GROUP","327.93","LAC Transitions Team","5310","Equipment - Purchase","03/11/2015"
"Wolverhampton City Council","http://opendatacommunities.org/id/metropolitan-district-council/wolverhampton","ARGOS LTD","329.99","LAC Transitions Team","5310","Equipment - Purchase","30/11/2015"
"Wolverhampton City Council","http://opendatacommunities.org/id/metropolitan-district-council/wolverhampton","Amazon UK Marketplace","335","MAST 5 - Valley Park","5942","Equipment - Purchase","23/11/2015"
"Wolverhampton City Council","http://opendatacommunities.org/id/metropolitan-district-council/wolverhampton","OFFICE DEPOT","335.29","Public Health Support Costs","5111","Stationery","03/11/2015"
"Wolverhampton City Council","http://opendatacommunities.org/id/metropolitan-district-council/wolverhampton","MERCURE WOLVERHAMPTON","338.75","Learning Disabilities Management","7011","Training Expenses","20/11/2015"
"Wolverhampton City Council","http://opendatacommunities.org/id/metropolitan-district-council/wolverhampton","CONNECTIONFLOORINGLTD","341.85","Children's Village Children Centre","5713","Equipment - Purchase","11/11/2015"
"Wolverhampton City Council","http://opendatacommunities.org/id/metropolitan-district-council/wolverhampton","ABLE CARPETS LTD","343.33","MAST 4 - Warstones","5713","Grant Payments","11/11/2015"
"Wolverhampton City Council","http://opendatacommunities.org/id/metropolitan-district-council/wolverhampton","C L JONES LIMITED","351.82","Towers Outdoor Education Centre","5211","Fixtures and Fittings - Purchases","11/11/2015"
"Wolverhampton City Council","http://opendatacommunities.org/id/metropolitan-district-council/wolverhampton","SEVERN TRENT WATER","353.55","Westside","4900","Water Charges","23/11/2015"
"Wolverhampton City Council","http://opendatacommunities.org/id/metropolitan-district-council/wolverhampton","TESCO STORES 5194","357.63","Towers Outdoor Education Centre","5411","Provisions (Not for resale)","19/11/2015"
"Wolverhampton City Council","http://opendatacommunities.org/id/metropolitan-district-council/wolverhampton","FTPE WEBTIS 1","363.2","LAC Transitions Team","4112","Public Transport","20/11/2015"
"Wolverhampton City Council","http://opendatacommunities.org/id/metropolitan-district-council/wolverhampton","OFFICE DEPOT","366.66","Business Manager - Place","5111","Stationery","27/11/2015"
"Wolverhampton City Council","http://opendatacommunities.org/id/metropolitan-district-council/wolverhampton","WWW.NISBETS.COM","370.42","Towers Outdoor Education Centre","5964","Equipment - Purchase","03/11/2015"
"Wolverhampton City Council","http://opendatacommunities.org/id/metropolitan-district-council/wolverhampton","WWW.VIKING-DIRECT.CO.U","379.2","Legal Services","5111","Stationery","27/11/2015"
"Wolverhampton City Council","http://opendatacommunities.org/id/metropolitan-district-council/wolverhampton","CARPET ELITE LTD","380","Looked After Team 1","5713","Equipment - Purchase","18/11/2015"
"Wolverhampton City Council","http://opendatacommunities.org/id/metropolitan-district-council/wolverhampton","TRAINLINE","388.82","Adoption and Residence Team & Allowances","4112","Public Transport","27/11/2015"
"Wolverhampton City Council","http://opendatacommunities.org/id/metropolitan-district-council/wolverhampton","BILSTON CARPETS","390","Looked After Team 1","5713","Equipment - Purchase","24/11/2015"
"Wolverhampton City Council","http://opendatacommunities.org/id/metropolitan-district-council/wolverhampton","WEST MID TRAVEL","394.6","Youth Offending Team","4131","Public Transport","30/11/2015"
"Wolverhampton City Council","http://opendatacommunities.org/id/metropolitan-district-council/wolverhampton","WWW.LOCKERTEK.CO.U","413.27","Central Baths","5943","Equipment - Purchase","02/11/2015"
"Wolverhampton City Council","http://opendatacommunities.org/id/metropolitan-district-council/wolverhampton","CROMARTIE HOBBYCRAFT L","415.95","Bilston Museum","5970","Materials","13/11/2015"
"Wolverhampton City Council","http://opendatacommunities.org/id/metropolitan-district-council/wolverhampton","THETICKETFACTORY","430.4","Midland Box Office","7922","Events","13/11/2015"
"Wolverhampton City Council","http://opendatacommunities.org/id/metropolitan-district-council/wolverhampton","HN NUTTALL LTD","433.99","Towers Outdoor Education Centre","5085","Provisions (Not for resale)","12/11/2015"
"Wolverhampton City Council","http://opendatacommunities.org/id/metropolitan-district-council/wolverhampton","FACEBOOK TQ6K28WQ92","438.58","Civic Halls Non Direct Management A/C","7311","Marketing \ Non-staff advertising","02/11/2015"
"Wolverhampton City Council","http://opendatacommunities.org/id/metropolitan-district-council/wolverhampton","WWW.SEVERNTRENTSEARCHE","455","HRA General","4900","Services - Professional Fees","09/11/2015"
"Wolverhampton City Council","http://opendatacommunities.org/id/metropolitan-district-council/wolverhampton","WWW.SEVERNTRENTSEARCHE","455","HRA General","4900","Services - Professional Fees","09/11/2015"
"Wolverhampton City Council","http://opendatacommunities.org/id/metropolitan-district-council/wolverhampton","BIOTECTS LTD","474.75","Learning Services","5111","Stationery","30/11/2015"
"Wolverhampton City Council","http://opendatacommunities.org/id/metropolitan-district-council/wolverhampton","FRINTON GALLERY LTD","498","Art Gallery","5970","Materials","10/11/2015"
"Wolverhampton City Council","http://opendatacommunities.org/id/metropolitan-district-council/wolverhampton","COMBINED COURT","560","Rents Management","9222","Services - Professional Fees","20/11/2015"
"Wolverhampton City Council","http://opendatacommunities.org/id/metropolitan-district-council/wolverhampton","WWW.VIKING-DIRECT.CO.U","576.98","Legal Services","5111","Stationery","26/11/2015"
"Wolverhampton City Council","http://opendatacommunities.org/id/metropolitan-district-council/wolverhampton","BRITISH GAS TRADIN","583.7","Valley Park - CIN SWU S17","5969","Electricity","23/11/2015"
"Wolverhampton City Council","http://opendatacommunities.org/id/metropolitan-district-council/wolverhampton","WWW.SEVERNTRENTSEARCHE","585","HRA General","4900","Services - Professional Fees","04/11/2015"
"Wolverhampton City Council","http://opendatacommunities.org/id/metropolitan-district-council/wolverhampton","FACEBOOK VQE2D8SB92","600","Communications & Marketing - General","7311","Marketing \ Non-staff advertising","25/11/2015"
"Wolverhampton City Council","http://opendatacommunities.org/id/metropolitan-district-council/wolverhampton","FACEBOOK LJ62U72B92","600.04","Communications & Marketing - General","7311","Marketing \ Non-staff advertising","10/11/2015"
"Wolverhampton City Council","http://opendatacommunities.org/id/metropolitan-district-council/wolverhampton","FACEBOOK RKTP68WA92","600.04","Communications & Marketing - General","7311","Marketing \ Non-staff advertising","03/11/2015"
"Wolverhampton City Council","http://opendatacommunities.org/id/metropolitan-district-council/wolverhampton","FACEBOOK UPEAS7NB92","600.05","Communications & Marketing - General","7311","Marketing \ Non-staff advertising","02/11/2015"
"Wolverhampton City Council","http://opendatacommunities.org/id/metropolitan-district-council/wolverhampton","FACEBOOK Z7AY68WA92","600.13","Communications & Marketing - General","7311","Marketing \ Non-staff advertising","17/11/2015"
"Wolverhampton City Council","http://opendatacommunities.org/id/metropolitan-district-council/wolverhampton","MARSDEN WEIGHING","612","Merry Hill House","5046","Equipment - Purchase","11/11/2015"
"Wolverhampton City Council","http://opendatacommunities.org/id/metropolitan-district-council/wolverhampton","PAYPAL  ZEN EUROPE","622.47","Learning Technologies","8299","Training Expenses","16/11/2015"
"Wolverhampton City Council","http://opendatacommunities.org/id/metropolitan-district-council/wolverhampton","STERMAT CAR AND VAN HI","630","Towers Outdoor Education Centre","5521","Hire of Vehicles","30/11/2015"
"Wolverhampton City Council","http://opendatacommunities.org/id/metropolitan-district-council/wolverhampton","HSBC INVOICE FINAN","656.85","Towers Outdoor Education Centre","6012","Laundry Expenses","12/11/2015"
"Wolverhampton City Council","http://opendatacommunities.org/id/metropolitan-district-council/wolverhampton","STERMAT CAR AND VAN HI","660","Towers Outdoor Education Centre","5521","Hire of Vehicles","26/11/2015"
"Wolverhampton City Council","http://opendatacommunities.org/id/metropolitan-district-council/wolverhampton","CENTRO HOUSE","680.34","Business Manager - Place","4112","Public Transport","10/11/2015"
"Wolverhampton City Council","http://opendatacommunities.org/id/metropolitan-district-council/wolverhampton","PAYPAL  LUCIDRESRCH","685","College of Further Education","8299","Computing - Purchase of Software","06/11/2015"
"Wolverhampton City Council","http://opendatacommunities.org/id/metropolitan-district-council/wolverhampton","WWW.SEVERNTRENTSEARCHE","790","HRA General","4900","Services - Professional Fees","04/11/2015"
"Wolverhampton City Council","http://opendatacommunities.org/id/metropolitan-district-council/wolverhampton","XMA LTD","834","Customer Services","7372","Computing - Purchase of Software","25/11/2015"
"Wolverhampton City Council","http://opendatacommunities.org/id/metropolitan-district-council/wolverhampton","INNOVATION ENTERPRISE","995","Central Training","7392","Training Expenses","06/11/2015"
"Wolverhampton City Council","http://opendatacommunities.org/id/metropolitan-district-council/wolverhampton","COMBINED COURT","1170","Head of Service - CINCP","9222","Services - Professional Fees","09/11/2015"
"Wolverhampton City Council","http://opendatacommunities.org/id/metropolitan-district-council/wolverhampton","AH MEDIA LTD","1188","Customer Services","8999","Services - Professional Fees","20/11/2015"
"Wolverhampton City Council","http://opendatacommunities.org/id/metropolitan-district-council/wolverhampton","IFOR WILLIAMS TRAILERS","1387.5","Towers Outdoor Education Centre","5599","Equipment - Purchase","10/11/2015"
"Wolverhampton City Council","http://opendatacommunities.org/id/metropolitan-district-council/wolverhampton","R.I.C.S. -(DRS)","1720","Property Services - Business Support","8699","Computing - Purchase of Software","19/11/2015"
"Wolverhampton City Council","http://opendatacommunities.org/id/metropolitan-district-council/wolverhampton","COMBINED COURT","1825","Legal Services","9222","Services - Fees and Charges","02/11/2015"
"Wolverhampton City Council","http://opendatacommunities.org/id/metropolitan-district-council/wolverhampton","COMBINED COURT","8900","Head of Service - CINCP","9222","Services - Professional Fees","16/11/2015"
"Wolverhampton City Council","http://opendatacommunities.org/id/metropolitan-district-council/wolverhampton","COMBINED COURT","12440","Head of Service - CINCP","9222","Services - Professional Fees","30/11/2015"
